{"text_format":"3","workbook":"xlsx","n_sheets":7,"sheets":["Transport (2)","Summary","Preliminaries & Generals","HV Cable (Civil)","Summary (Civil)","HV Cable (Electrical)","Summary (Electrical)"],"read":"whole","date_system":"1900"}

{"sheet":"Transport (2)","index":0,"n_rows":9,"n_cols":6,"rows_kept":9}
[1,"TRANSPORT","Unit","Quantity","Rate","Amount"]
[1.1,"LDV","km",{"$f":"2*22*6*80","v":{"v":21120,"d":"21,120.00"}},0,{"$f":"+E2*D2","v":0}]
[1.2,"Personnel Transport for Staff","km",{"$f":"2*22*6*80","v":{"v":21120,"d":"21,120.00"}},0,{"$f":"+E3*D3","v":0}]
[1.3,"10 m³ Tipper Truck","km",{"$f":"10*80","v":{"v":800,"d":"800.00"}},0]
[1.5,"Transport Truck 5-8 ton with crane","km",{"$f":"4*6*80","v":{"v":1920,"d":"1,920.00"}},0]
["1.6","Transport Truck 9-14 ton with crane","km",{"$f":"2*80","v":{"v":160,"d":"160.00"}},0,{"$f":"+E6*D6","v":0}]
["1.7","Lowbed","Per day",null,0]
["1.8","TLB wet rate","Per day",null,0]
[null,"Total carried forward to summary",{"$nulls":3},{"$f":"SUM(F2:F7)","v":0}]

{"sheet":"Summary","index":1,"n_rows":9,"n_cols":6,"rows_kept":9}
[]
[]
[]
[{"$nulls":3},"Item","Description","Price"]
[{"$nulls":3},1,"Preliminaries and General"]
[{"$nulls":3},2,"Summary Civil"]
[{"$nulls":3},3,"Summary Electrical"]
[{"$nulls":3},4,"Transport"]
[{"$nulls":3},5,"Total excl VAT"]

{"sheet":"Preliminaries & Generals","index":2,"n_rows":20,"n_cols":7,"rows_kept":20,"merged":[[0,0,0,3]]}
["Preliminaries & General"]
["Item","Reference Drawing","Description","Unit","Qty","Rate","Total"]
[null,null,"Every Invoice to be signed and verified by Quantity Surveyor for payment."]
[1,null,"Site Establishment"]
[1.1,null,"Overheads for project (This includes Site Establishment Overhead Costs, Office Overheads, Administration Costs etc.) Total Labour Value","%",null,0,{"$f":"+F5*E5","v":0}]
[1.2,null,"Health and Safety Management, OHSA appointments, PPE etc. Total Labour Value","%",null,0,{"$f":"+F6*E6","v":0}]
[1.3,null,"Quality & Contract Management. Total Labour Value","%",null,0,0]
[1.4,null,"Environmental Management & Site maintenance. Total Labour Value","%",null,{"$f":"F7","v":0},0]
[1.5,null,"De-establishment & Rehabilitation of Site","Sum",0,null,{"$f":"+F9*E9","v":0}]
[1.6,null,"Security","Week",24,null,0]
[1.7,null,"Facilities for security (Guard house, toilet etc.)","Month",6,null,0]
["1.8",null,"Safety Officer   SACPMP","Day",{"$f":"22*6","v":132},null,0]
["1.9",null,"Construction Manager SACPMP","Day",132]
["1.10",null,"Responsible person","Day",132,null,0]
[null,null,"TOTAL",{"$nulls":3},{"$f":"SUM(G5:G14)","v":0}]
[]
[]
[]
[]
[null,null," "]

{"sheet":"HV Cable (Civil)","index":3,"n_rows":157,"n_cols":12,"rows_kept":157,"merged":[[1,1,1,2],[1,3,1,11],[2,1,2,2],[2,3,2,11],[3,1,3,2],[3,3,3,11],[4,1,4,2],[4,3,4,11],[6,1,6,11],[8,1,8,11],[9,1,9,11],[15,1,15,4],[16,1,16,11],[32,1,32,4],[33,1,33,11],[46,1,46,4],[47,1,47,11],[70,1,70,4],[71,1,71,11],[95,1,95,4],[96,1,96,11],[107,1,107,4],[108,1,108,11],[121,1,121,4],[122,1,122,11],[125,1,125,4],[126,1,126,11],[127,1,127,11],[129,1,129,4],[130,1,130,11],[145,1,145,4],[148,1,148,4],[149,1,149,11],[156,1,156,4]]}
[]
[null,"Project Name:",null,"Simmerpan Substation Upgrade"]
[null,"Project ID:",null,"NW-STM-1308-2317"]
[null,"Job Name:",null,"NW-STM-1308-2317-00002"]
[null,"Job ID:",null,"Germiston Factories- Simmerpan   88kV cables"]
[]
[null,"Bill of Activities"]
[null,"Item","Reference: Drawing / Standard","Description","Unit","Material Quantity","Material Rate","Material Total","Labour Quantity","Labour Rate","Labour Total","Total "]
[null,"*Note: For the purpose of this quote, it must not be assumed that any Eskom property may be used to establish site or store any equipment, material, backfill, etc. whatsoever."]
[null,"Civil Contractor - Pre-work Assessment, Engineering and Construction related activities."]
[null,"1.1","n/a","Supply and install during construction and remove after construction, danger labels, Water filled plastic barricading and steel guard rails along the cable route length and joint bays. – Signs must be clearly visible even in poor visibility conditions. – (Use warning illuminants where possible.)","m",null,{"v":0,"d":"0.00"},{"$f":"F11*G11","v":{"v":0,"d":"0.00"}},3040,{"v":0,"d":"0.00"},{"$f":"I11*J11","v":{"v":0,"d":"0.00"}},{"$f":"H11+K11","v":{"v":0,"d":"0.00"}}]
[null,"1.3","n/a","Supply and Install steel trench covers / plates during construction, and remove after construction, to ensure that there is access to properties while the HV cable is being installed along the route length.","Item",null,{"v":0,"d":"0.00"},{"$f":"F12*G12","v":{"v":0,"d":"0.00"}},1,{"v":0,"d":"0.00"},{"$f":"I12*J12","v":{"v":0,"d":"0.00"}},{"$f":"H12+K12","v":{"v":0,"d":"0.00"}}]
[null,"1.4","n/a","Take photos and video of the existing and new HV cable route before and after construction. Photos and Video to be stored on digital media and submitted to Eskom. Photos and video to be taken by a professional and independent third party, and by date and time stamped.","Item",null,{"v":0,"d":"0.00"},{"v":0,"d":"0.00"},1,{"v":0,"d":"0.00"},{"v":0,"d":"0.00"},{"v":0,"d":"0.00"}]
[null,"1.5","n/a","Ensure the wayleaves and approvals from all statutory bodies for the fibre optic route obtained from Eskom have not expired, prior to construction. Re-apply for the wayleaves and approvals if required and ensure wayleaves and approvals are renewed as necessary, throughout the duration of the construction or site works.","Cost plus fee",null,{"v":0,"d":"0.00"},{"v":0,"d":"0.00"},1,{"v":0,"d":"0.00"},{"v":0,"d":"0.00"},{"v":0,"d":"0.00"}]
[null,"1.6","DST 34-1177","Perform Engineering as per engineering document: General information and requirements for High Voltage systems","Item",null,{"v":0,"d":"0.00"},{"v":0,"d":"0.00"},1,{"v":0,"d":"0.00"},{"v":0,"d":"0.00"},{"v":0,"d":"0.00"}]
[null,"Total",{"$nulls":5},{"$f":"SUM(H11:H15)","v":{"v":0,"d":"0.00"}},null,null,{"$f":"SUM(K11:K15)","v":{"v":0,"d":"0.00"}},{"$f":"SUM(L11:L15)","v":{"v":0,"d":"0.00"}}]
[null,"Civil Contractor : River crossing and embankment support"]
[null,"2.1","D-DT-0895 Sheet X and Sheet Y SANS 677","Determine depth of river and construct a start and end shaft  / pit for pipe jacking (Cost to include both excavations).  Pipes to be jacked a minimum of 2m below the base of the river bed. (Pipe jack pit / shaft to be done in accordance with building regulations and other applicable requirements.) Costs also to include rock blasting if required, and the removal, transportation and dumping (in accordance with the EMP) of water from the pit /shaft and installed concrete pipe, if required. Costs also to include backfilling and reinstatement of area to its original state after construction.","Item 1 / \n2 x pits / shafts",null,{"v":0,"d":"0.00"},{"$f":"F18*G18","v":{"v":0,"d":"0.00"}},null,{"v":0,"d":"0.00"},{"$f":"I18*J18","v":{"v":0,"d":"0.00"}},{"$f":"H18+K18","v":{"v":0,"d":"0.00"}}]
[null,"2.2","D-DT-0895 Sheet X and Sheet Y SANS 677","Pipe jack concrete pipes underneath a river. Pipes to be a minimum of 2m below the base of the river bed. Costs to include reinforced precast concrete pipes of 1.2m nominal diameter, 2.5m length, for pipe jacking and Spigot and Socket joints or in-the-wall joints for the pipes. Concrete pipes shall comply to SANS 677 type SC requirements. ","m",null,{"v":0,"d":"0.00"},{"$f":"F19*G19","v":{"v":0,"d":"0.00"}},null,{"v":0,"d":"0.00"},{"$f":"I19*J19","v":{"v":0,"d":"0.00"}},{"$f":"H19+K19","v":{"v":0,"d":"0.00"}}]
[null,"2.3","D-DT-8018, D-DT-0895 sheet X.","Space, position and fix all PVC ducts for the entire length of the PVC ducts inside the concrete pipe.  This can be achieved using rot-proof or remanufactured spacers. (Supply and install.)","m",null,{"v":0,"d":"0.00"},{"$f":"F20*G20","v":{"v":0,"d":"0.00"}},null,{"v":0,"d":"0.00"},{"$f":"I20*J20","v":{"v":0,"d":"0.00"}},{"$f":"H20+K20","v":{"v":0,"d":"0.00"}}]
[null,"2.4","D-DT-8018, D-DT-0895 sheet X.","Supply and Install 6m lengths of 250mm diameter PVC ducts and sockets inside the 1.2m concrete pipe for 3 x HV single core cables. (PVC pipes to protrude a minimum of 2000mm past pre-cast channel / pipe into the bank of the river/stream. High level water mark to be used as reference.) ","m",null,{"v":0,"d":"0.00"},{"$f":"F21*G21","v":{"v":0,"d":"0.00"}},null,{"v":0,"d":"0.00"},{"$f":"I21*J21","v":{"v":0,"d":"0.00"}},{"$f":"H21+K21","v":{"v":0,"d":"0.00"}}]
[null,"2.5","D-DT-8018, D-DT-0895 sheet X.","Supply and Install 6m lengths of 250mm diameter PVC ducts and sockets inside the 1.2m concrete pipe as spares for maintenance. (6 x Series PVC duct spares for HV cable.) (PVC pipes to protrude a minimum of 2000mm past pre-cast channel / pipe, into the bank of the river/stream. High level water mark to be used as reference.) ","m",null,{"v":0,"d":"0.00"},{"v":0,"d":"0.00"},null,{"v":0,"d":"0.00"},{"v":0,"d":"0.00"},{"v":0,"d":"0.00"}]
[null,"2.6","D-DT-8018, D-DT-0895 sheet X.","Supply and Install 6m lengths of 160mm diameter PVC (D-DT-8018) ducts and sockets inside the 1.2m concrete pipe for fibre optic cables and the ECC. (PVC pipes to protrude a minimum of 2000mm past pre-cast channel / pipe. One PVC pipe to carry the fibre cable used for differential protection, and a separate PVC pipe to be used for the ECC. The fibre cable used for DTS shall occupy the same PVC sleeve used for the HV cable.)","m",null,{"v":0,"d":"0.00"},{"v":0,"d":"0.00"},null,{"v":0,"d":"0.00"},{"v":0,"d":"0.00"},{"v":0,"d":"0.00"}]
[null,"2.7","D-DT-8018, D-DT-0895 sheet X.","Supply and Install 6m lengths of 160mm diameter PVC ducts and sockets inside the 1.2m concrete pipe as spare for maintenance of the fibre optic cable and ECC. (PVC pipes to protrude a minimum of 2000mm past pre-cast channel / pipe.) ","m",null,{"v":0,"d":"0.00"},{"v":0,"d":"0.00"},null,{"v":0,"d":"0.00"},{"v":0,"d":"0.00"},{"v":0,"d":"0.00"}]
[null,"2.8","D-DT-8018, D-DT-0895 sheet X.","Supply, deliver and fill a 1.2m concrete pipe with a bentonite and water mix (10:1) that is combined with a sand and cement mix (20:8) in the ratio 100:1. The mix must be kept in position by sealing the end of the concrete pipe with densomastic paste (to prevent water ingress), while ensuring the PVC pipes inside still protrude past the concrete pipe and is not filled with any backfill material. ","m³",null,{"v":0,"d":"0.00"},{"v":0,"d":"0.00"},null,{"v":0,"d":"0.00"},{"v":0,"d":"0.00"},{"v":0,"d":"0.00"}]
[null,"2.9","n/a","Supply, deliver and Seal spare 250mm diameter PVC ducts with suitable caps to prevent ingress of water, vermin and backfill material.","Ea.",null,{"v":0,"d":"0.00"},{"v":0,"d":"0.00"},null,{"v":0,"d":"0.00"},{"v":0,"d":"0.00"},{"v":0,"d":"0.00"}]
[null,"2.10","n/a","Supply and Install non-metallic draw wires in spare 250mm diameter PVC sleeves.","m",null,{"v":0,"d":"0.00"},{"v":0,"d":"0.00"},null,{"v":0,"d":"0.00"},{"v":0,"d":"0.00"},{"v":0,"d":"0.00"}]
[null,"2.11","n/a","Supply, deliver and Seal spare 160mm diameter PVC ducts with suitable caps to prevent ingress of water, vermin and backfill material.","Ea.",null,{"v":0,"d":"0.00"},{"v":0,"d":"0.00"},null,{"v":0,"d":"0.00"},{"v":0,"d":"0.00"},{"v":0,"d":"0.00"}]
[null,"2.12","n/a","Supply and Install non-metallic draw wires in spare 160mm diameter PVC sleeves.","m",null,{"v":0,"d":"0.00"},{"v":0,"d":"0.00"},null,{"v":0,"d":"0.00"},{"v":0,"d":"0.00"},{"v":0,"d":"0.00"}]
[null,"2.13","n/a","Supply and Install gabions on both sides of the river, at the river crossings to impede soil erosion and the exposure of the concrete pipes installed during pipe-jacking.","m",null,{"v":0,"d":"0.00"},{"v":0,"d":"0.00"},null,{"v":0,"d":"0.00"},{"v":0,"d":"0.00"},{"v":0,"d":"0.00"}]
[null,"2.14","n/a","Supply and Install energy breakers on the river bed to decrease the increased velocity of the water caused by the gabions.","Item",null,{"v":0,"d":"0.00"},{"v":0,"d":"0.00"},null,{"v":0,"d":"0.00"},{"v":0,"d":"0.00"},{"v":0,"d":"0.00"}]
[null,"2.15","n/a","Supply and Install riprap (rock armour) on both sides of the river, at the river crossings to impede soil erosion and the exposure of the concrete pipes installed during pipe-jacking.","m",null,{"v":0,"d":"0.00"},{"v":0,"d":"0.00"},null,{"v":0,"d":"0.00"},{"v":0,"d":"0.00"},{"v":0,"d":"0.00"}]
[null,"Total",{"$nulls":5},{"$f":"SUM(H18:H32)","v":{"v":0,"d":"0.00"}},null,null,{"$f":"SUM(K18:K32)","v":{"v":0,"d":"0.00"}},{"$f":"SUM(L18:L32)","v":{"v":0,"d":"0.00"}}]
[null,"Civil Contractor : Road crossing"]
[null,"3.1","Project Specific drawing.","Directionally drill underneath road and supply and install 250mm diameter PVC duct for HV cable. Contractor to supply PVC pipe compatible with its machine.  [Drill holes for 3 x PVC pipes above (1m apart), and 3 x PVC pipes below (1m apart – 1m lower than the first three.)]","m",null,{"v":0,"d":"0.00"},{"$f":"F35*G35","v":{"v":0,"d":"0.00"}},null,{"v":0,"d":"0.00"},{"$f":"I35*J35","v":{"v":0,"d":"0.00"}},{"$f":"H35+K35","v":{"v":0,"d":"0.00"}}]
[null,"3.2","Project Specific drawing.","Directionally drill underneath road and supply and install 160mm diameter PVC duct for HV cable. Contractor to supply PVC pipe compatible with its machine.  [Drill holes for 3 x PVC pipes above (1m apart), and 3 x PVC pipes below (1m apart – 1m lower than the first three.)]","m",null,{"v":0,"d":"0.00"},{"$f":"F36*G36","v":{"v":0,"d":"0.00"}},null,{"v":0,"d":"0.00"},{"$f":"I36*J36","v":{"v":0,"d":"0.00"}},{"$f":"H36+K36","v":{"v":0,"d":"0.00"}}]
[null,"3.3","Germiston Factories to Simmerpan fibre route ","Directionally drill underneath road and supply and install 110mm diameter PVC duct for fibre optic cable .  Contractor to supply PVC pipe compatible with its machine.  [Drill holes for 2 x PVC pipes (more than 1m apart.)]","m",null,{"v":0,"d":"0.00"},{"$f":"F37*G37","v":{"v":0,"d":"0.00"}},null,{"v":0,"d":"0.00"},{"$f":"I37*J37","v":{"v":0,"d":"0.00"}},{"$f":"H37+K37","v":{"v":0,"d":"0.00"}}]
[null,"3.4","D-DT-8018","Install a 250mm diameter PVC sleeves underneath road / entrance (each PVC is in 6m length) for HV cable.  Cost to include the concrete casted over the PVC sleeves which shall have a minimum surround of 75 mm, to prevent collapsing or deformation after backfilling. The concrete strength shall be at least 15 MPA.","m",null,{"v":0,"d":"0.00"},{"v":0,"d":"0.00"},null,{"v":0,"d":"0.00"},{"v":0,"d":"0.00"},{"v":0,"d":"0.00"}]
[null,"3.5","D-DT-8018","Install 160mm diameter PVC sleeves underneath road / entrance (each PVC is in 6m length) for HV cable.  Cost to include the concrete casted over the PVC sleeves which shall have a minimum surround of 75 mm, to prevent collapsing or deformation after backfilling. The concrete strength shall be at least 15 MPA.","m",null,{"v":0,"d":"0.00"},{"v":0,"d":"0.00"},null,{"v":0,"d":"0.00"},{"v":0,"d":"0.00"},{"v":0,"d":"0.00"}]
[null,"3.7","n/a","Supply, deliver and Seal spare 250mm diameter PVC ducts with suitable caps to prevent ingress of water, vermin and backfill material.","Number of seals",null,{"v":0,"d":"0.00"},{"v":0,"d":"0.00"},null,{"v":0,"d":"0.00"},{"v":0,"d":"0.00"},{"v":0,"d":"0.00"}]
[null,"3.8","n/a","Supply and Install non-metallic draw wires in spare 250mm diameter PVC sleeves.","m",null,{"v":0,"d":"0.00"},{"v":0,"d":"0.00"},null,{"v":0,"d":"0.00"},{"v":0,"d":"0.00"},{"v":0,"d":"0.00"}]
[null,"3.9","n/a","Supply, deliver and Seal spare 160mm diameter PVC ducts with suitable caps to prevent ingress of water, vermin and backfill material.","Number of seals",null,{"v":0,"d":"0.00"},{"v":0,"d":"0.00"},null,{"v":0,"d":"0.00"},{"v":0,"d":"0.00"},{"v":0,"d":"0.00"}]
[null,"3.10","n/a","Supply and Install non-metallic draw wires in spare 160mm diameter PVC sleeves.","m",null,{"v":0,"d":"0.00"},{"v":0,"d":"0.00"},null,{"v":0,"d":"0.00"},{"v":0,"d":"0.00"},{"v":0,"d":"0.00"}]
[null,"3.11","n/a","Supply, deliver and Seal spare 110mm diameter PVC ducts with suitable caps to prevent ingress of water, vermin and backfill material.","Number of seals",null,{"v":0,"d":"0.00"},{"v":0,"d":"0.00"},null,{"v":0,"d":"0.00"},{"v":0,"d":"0.00"},{"v":0,"d":"0.00"}]
[null,"3.12","n/a","Supply and Install non-metallic draw wires in spare 110mm diameter PVC sleeves.","m",null,{"v":0,"d":"0.00"},{"v":0,"d":"0.00"},null,{"v":0,"d":"0.00"},{"v":0,"d":"0.00"},{"v":0,"d":"0.00"}]
[null,"3.13","n/a","Supply, deliver and fill PVC pipes with concrete, reinforcing and seals at the ends to keep the concrete in place.","m³",null,{"v":0,"d":"0.00"},{"v":0,"d":"0.00"},null,{"v":0,"d":"0.00"},{"v":0,"d":"0.00"},{"v":0,"d":"0.00"}]
[null,"Total",{"$nulls":5},{"$f":"SUM(H35:H46)","v":{"v":0,"d":"0.00"}},null,null,{"$f":"SUM(K35:K46)","v":{"v":0,"d":"0.00"}},{"$f":"SUM(L35:L46)","v":{"v":0,"d":"0.00"}}]
[null,"Civil Contractor : HV Cable installation (Normal Installation)"]
[null,"4.1","n/a","Saw cutting of road surface. (One side of trench)","m",null,{"v":0,"d":"0.00"},{"$f":"F49*G49","v":{"v":0,"d":"0.00"}},null,{"v":0,"d":"0.00"},{"$f":"I49*J49","v":{"v":0,"d":"0.00"}},{"$f":"H49+K49","v":{"v":0,"d":"0.00"}}]
[null,"4.2","n/a","Saw cutting of road surface. (On both sides of trench)","Total length - m",null,{"v":0,"d":"0.00"},{"$f":"F50*G50","v":{"v":0,"d":"0.00"}},null,{"v":0,"d":"0.00"},{"$f":"I50*J50","v":{"v":0,"d":"0.00"}},{"$f":"H50+K50","v":{"v":0,"d":"0.00"}}]
[null,"4.3","D-DT-0892 Sheet 1 and Sheet 3","Excavate (by hand) a 0.45m wide x 0.75m deep trench for the fibre – General / Parallel to kerb. ","m³",null,{"v":0,"d":"0.00"},{"v":0,"d":"0.00"},null,{"v":0,"d":"0.00"},{"v":0,"d":"0.00"},{"v":0,"d":"0.00"}]
[null,"4.4","'D-DT-0892 Sheet 1 and Sheet 3","'Excavate (by hand) a 1m wide x 1.3m deep trench for the HV cable – General / Parallel to curb. (Note: Excavation to be done in sections at a time, from one manhole to the next manhole. After this, the trench must be backfilled, compacted and surfaces reinstated, etc. before continuing with the installation of the next section. The actual labour for backfilling, compacting, reinstatement, etc. will be covered in other activities.) ","m³",null,{"v":0,"d":"0.00"},{"$f":"F52*G52","v":{"v":0,"d":"0.00"}},{"$f":"650*1.3","v":845},{"v":0,"d":"0.00"},{"$f":"I52*J52","v":{"v":0,"d":"0.00"}},{"$f":"H52+K52","v":{"v":0,"d":"0.00"}}]
[null,"4.4","D-DT-0892 Sheet 1 and Sheet 3",null,"m³",null,{"v":0,"d":"0.00"},{"v":0,"d":"0.00"},null,{"v":0,"d":"0.00"},{"v":0,"d":"0.00"},{"v":0,"d":"0.00"}]
[null,"4.5","n/a",null,"m³",null,{"v":0,"d":"0.00"},{"v":0,"d":"0.00"},null,{"v":0,"d":"0.00"},{"v":0,"d":"0.00"},{"v":0,"d":"0.00"}]
[null,"4.6","D-DT-0892 Sheet 1 and Sheet 3","Transport (from site) and dump soil. (Bedding and blanket soil.) (Material to be dumped at suitable site in accordance with the EMP.)","m³",null,{"v":0,"d":"0.00"},{"v":0,"d":"0.00"},{"$f":"845/1.3*0.4","v":260},{"v":0,"d":"0.00"},{"v":0,"d":"0.00"},{"v":0,"d":"0.00"}]
[null,"4.7","SANS 10198 and D-DT-0892 Sheet 1 and Sheet 3","Supply (Import), install and hand compact (90% MOD AASHTO) imported 1.2 Km/W sifted soil as bedding and blanket for the HV cable.) – 1.5m (wide) x 0.2m (deep), 100% of the route.","m³",260,{"v":0,"d":"0.00"},{"v":0,"d":"0.00"},260,{"v":0,"d":"0.00"},{"v":0,"d":"0.00"},{"v":0,"d":"0.00"}]
[null,"4.9","SANS 10198 and D-DT-0892 Sheet 1 and Sheet 3","Return (Transport), sift, backfill, and hand compact (90% MOD AASHTO) original soil as bedding and blanket for the HV cable.) – 1m (wide) x 0.4m (deep), 100% of the route. (Original excavated soil; Second handling of soil) ","m³",null,{"v":0,"d":"0.00"},{"v":0,"d":"0.00"},null,{"v":0,"d":"0.00"},{"v":0,"d":"0.00"},{"v":0,"d":"0.00"}]
[null,null,"'SANS 10198 and D-DT-0892 Sheet 1 and Sheet 3","Return (Transport), sift, backfill and compact (in maximum layers of 300mm – 90% MOD AASHTO) original soil as backfill for the fibre) – 1m (wide) x 0.9m (deep), for 100% of the route. (Original excavated soil; Second handling of soil) – General / Under Road Surface (Parallel to kerbing.) ","m³"]
[null,"4.10","SANS 10198 and D-DT-0892 Sheet 1 and Sheet 3","sift, backfill and compact (in maximum layers of 300mm – 90% MOD AASHTO) original soil as backfill for HV cables.) – 1m (wide) x 0.9m (deep), for 100% of the route. (Original excavated soil; Second handling of soil) – General / Under Road Surface (Parallel to kerbing.) ","m³",null,{"v":0,"d":"0.00"},{"v":0,"d":"0.00"},{"$f":"845-I55","v":585},{"v":0,"d":"0.00"},{"v":0,"d":"0.00"},{"v":0,"d":"0.00"}]
[null,"4.11","SANS 10198 and D-DT-0892 Sheet 1 and Sheet 3","Return (Transport), sift, backfill and compact (in maximum layers of 300mm – 90% MOD AASHTO ) original soil as backfill for HV cables.) – 1m (wide) x 1.2m (deep), for 100% of the route. (Original excavated soil; Second handling of soil) – Road / Railway crossing.","m³",null,{"v":0,"d":"0.00"},{"v":0,"d":"0.00"},null,{"v":0,"d":"0.00"},{"v":0,"d":"0.00"},{"v":0,"d":"0.00"}]
[null,"4.12","SANS 10198 and D-DT-0892 Sheet 1 and Sheet 3","Offload and install Danger / Warning tape along cable route length. (The tape weights about 22kg for 330m of tape.)","m",650,{"v":0,"d":"0.00"},{"v":0,"d":"0.00"},650,{"v":0,"d":"0.00"},{"v":0,"d":"0.00"},{"v":0,"d":"0.00"}]
[null,"4.13","n/a","Chemical rock breaking. (Supply and apply safely) ","Item",null,{"v":0,"d":"0.00"},{"v":0,"d":"0.00"},null,{"v":0,"d":"0.00"},{"v":0,"d":"0.00"},{"v":0,"d":"0.00"}]
[null,"4.14","n/a","Rock blasting. (Supply and apply safely) ","Item",null,{"v":0,"d":"0.00"},{"v":0,"d":"0.00"},null,{"v":0,"d":"0.00"},{"v":0,"d":"0.00"},{"v":0,"d":"0.00"}]
[null,"4.15","n/a","Transport and dump broken rock. (Material to be dumped at suitable site in accordance with the EMP.)","m³",null,{"v":0,"d":"0.00"},{"v":0,"d":"0.00"},null,{"v":0,"d":"0.00"},{"v":0,"d":"0.00"},{"v":0,"d":"0.00"}]
[null,"4.16","D-DT-8076  and D-DT-0892 Sheet 1 and Sheet 3","Offload and install pre-cast concrete slabs (760mm long, 200mm wide) as per D-DT-0892, along HV cable route length. ","Ea.",{"$f":"ROUNDUP(650/0.76,0)","v":856},{"v":0,"d":"0.00"},{"v":0,"d":"0.00"},845,{"v":0,"d":"0.00"},{"v":0,"d":"0.00"},{"v":0,"d":"0.00"}]
[null,"4.17","D-DT-0892 Sheet 1 and Sheet 3","Supply, deliver, install (at start of cable trenching) and decommission (after construction) 1.5m high shoring timber on both sides of the HV cable trench. (General / Under Road Surface (Parallel to kerbing)) - Shoring to be designed by ECSA registered Civil / Structural engineer.","Linear Length",null,{"v":0,"d":"0.00"},{"v":0,"d":"0.00"},null,{"v":0,"d":"0.00"},{"v":0,"d":"0.00"},{"v":0,"d":"0.00"}]
[null,"4.18","D-DT-0892 Sheet 1 and Sheet 3","Supply, deliver, install (at start of cable trenching) and decommission (after construction) 1.8m high shoring timber on both sides of the HV cable trench. (Road and Railway crossings) - Shoring to be designed by ECSA registered Civil / Structural engineer.","Linear Length",null,{"v":0,"d":"0.00"},{"v":0,"d":"0.00"},650,{"v":0,"d":"0.00"},{"v":0,"d":"0.00"},{"v":0,"d":"0.00"}]
[null,"4.19","DMN_240-45683927","Test soil compaction along HV cable route length in intervals of 300m. A DCP (dynamic cone penetrometer) must be used and five blows on a given test with this device may not exceed 150mm in soil depth. (Equivalent to 90% Mod AASHTO.) If the depth is exceeded, then the Design engineer must be notified immediately. Results to be documented and stored on an electronic media and submitted to Eskom.","Number of tests",null,{"v":0,"d":"0.00"},{"v":0,"d":"0.00"},2,{"v":0,"d":"0.00"},{"v":0,"d":"0.00"},{"v":0,"d":"0.00"}]
[null,"4.20","SANS 10198-5","Test the thermal resistivity of the imported bedding and blanket soil, after installation, at intervals of 500m along the HV cable route length in accordance with SANS 10198-5. Results to be documented and stored on an electronic media and submitted to Eskom.","Number of tests",null,{"v":0,"d":"0.00"},{"v":0,"d":"0.00"},2,{"v":0,"d":"0.00"},{"v":0,"d":"0.00"},{"v":0,"d":"0.00"}]
[null,"4.21","n/a","Perform cross-trenches / trial holes to determine the location of services. Cross-trenches to be reinstated to their original state. (Trench sizes are: 4m wide x 1m long x 1.8m deep = 7.2m³)","m³",null,{"v":0,"d":"0.00"},{"v":0,"d":"0.00"},4,{"v":0,"d":"0.00"},{"v":0,"d":"0.00"},{"v":0,"d":"0.00"}]
[null,"Total",{"$nulls":5},{"$f":"SUM(H49:H70)","v":{"v":0,"d":"0.00"}},null,null,{"$f":"SUM(K49:K70)","v":{"v":0,"d":"0.00"}},{"$f":"SUM(L49:L70)","v":{"v":0,"d":"0.00"}}]
[null,"Civil Contractor : HV Cable installation (Inside Culverts)"]
[null,"5.1","n/a","Saw cutting of road surface. (One side of trench)","m",null,{"v":0,"d":"0.00"},{"$f":"F73*G73","v":{"v":0,"d":"0.00"}},null,{"v":0,"d":"0.00"},{"$f":"I73*J73","v":{"v":0,"d":"0.00"}},{"$f":"H73+K73","v":{"v":0,"d":"0.00"}}]
[null,"5.2","n/a","Saw cutting of road surface. (On both sides of trench)","Total length - m",null,{"v":0,"d":"0.00"},{"$f":"F74*G74","v":{"v":0,"d":"0.00"}},null,{"v":0,"d":"0.00"},{"$f":"I74*J74","v":{"v":0,"d":"0.00"}},{"$f":"H74+K74","v":{"v":0,"d":"0.00"}}]
[null,"5.3","D-ST-2328 Sheet 1 Rev 0, Sheet 6 Rev 0 and Sheet 7 Rev 0","Excavate (by hand / machine) a 1,6m wide x 1.3m deep trench for the HV cable (80% Pickable (normal), 20% Jack Hammer (mechanical)) – General / Under Road Surface (Parallel to kerbing.) \n\n(Note: Excavation to be done in sections at a time, from one HV joint bay to the next HV joint bay. After this, the trench must be backfilled, compacted and surfaces reinstated, etc. before continuing with the installation of the next section. The actual labour for backfilling, compacting, reinstatement, etc. will be covered in other activities.) ","m³",null,{"v":0,"d":"0.00"},{"v":0,"d":"0.00"},null,{"v":0,"d":"0.00"},{"v":0,"d":"0.00"},{"v":0,"d":"0.00"}]
[null,"5.4","D-ST-2328 Sheet 1 Rev 0, Sheet 6 Rev 0 and Sheet 7 Rev 0","Excavate (by hand / machine) a 1.6m wide x 1.6m deep trench for the HV cable. (80% Pickable (normal), 20% Jack Hammer (mechanical)) – At Road and Railway crossings. \n\n(Note: Excavation to be done in sections at a time, from one HV joint bay to the next HV joint bay. After this, the trench must be backfilled, compacted and surfaces reinstated, etc. before continuing with the installation of the next section. The actual labour for backfilling, compacting, reinstatement, etc. will be covered in other activities.)","m³",null,{"v":0,"d":"0.00"},{"v":0,"d":"0.00"},null,{"v":0,"d":"0.00"},{"v":0,"d":"0.00"},{"v":0,"d":"0.00"}]
[null,"5.5","n/a","Transport (from site) and store soil at suitable site. (First handling of soil).","m³",null,{"v":0,"d":"0.00"},{"v":0,"d":"0.00"},null,{"v":0,"d":"0.00"},{"v":0,"d":"0.00"},{"v":0,"d":"0.00"}]
[null,"5.6","D-ST-2328 Sheet 1 Rev 0, Sheet 6 Rev 0 and Sheet 7 Rev 0","Transport (from site) and dump soil. (Bedding and blanket soil.) (Material to be dumped at suitable site in accordance with the EMP.)","m³",null,{"v":0,"d":"0.00"},{"v":0,"d":"0.00"},null,{"v":0,"d":"0.00"},{"v":0,"d":"0.00"},{"v":0,"d":"0.00"}]
[null,"5.7","SANS 10198 and D-ST-2328 Sheet 1 Rev 0, Sheet 6 Rev 0 and Sheet 7 Rev 0","Sift soil with sieve having a maximum mesh size of no greater than 12mm.","m³",null,{"v":0,"d":"0.00"},{"v":0,"d":"0.00"},null,{"v":0,"d":"0.00"},{"v":0,"d":"0.00"},{"v":0,"d":"0.00"}]
[null,"5.8","SANS 10198 and D-ST-2328 Sheet 1 Rev 0, Sheet 6 Rev 0 and Sheet 7 Rev 0","Supply (Import), install and hand compact (90% MOD AASHTO) imported 1.2 Km/W sifted soil as bedding and blanket for the HV cable.) – 1.2m (wide) x 0.6m (deep), 100% of the route.","m³",null,{"v":0,"d":"0.00"},{"v":0,"d":"0.00"},null,{"v":0,"d":"0.00"},{"v":0,"d":"0.00"},{"v":0,"d":"0.00"}]
[null,"5.9","SANS 10198 and D-ST-2328 Sheet 1 Rev 0, Sheet 6 Rev 0 and Sheet 7 Rev 0","Return (Transport), sift, backfill, and hand compact (90% MOD AASHTO) original soil as bedding and blanket for the HV cable.) – 1.2m (wide) x 0.6m (deep), 100% of the route. (Original excavated soil; Second handling of soil) ","m³",null,{"v":0,"d":"0.00"},{"v":0,"d":"0.00"},null,{"v":0,"d":"0.00"},{"v":0,"d":"0.00"},{"v":0,"d":"0.00"}]
[null,"5.10","SANS 10198 and D-ST-2328 Sheet 1 Rev 0, Sheet 6 Rev 0 and Sheet 7 Rev 0","Return (Transport), sift, backfill and compact (in maximum layers of 300mm – 90% MOD AASHTO) original soil as backfill for HV cables.) – 1.6m (wide) x 0.45m (deep), and next to culverts, for 100% of the route. (Original excavated soil; Second handling of soil) – General / Under Road Surface (Parallel to kerbing.) ","m³",null,{"v":0,"d":"0.00"},{"v":0,"d":"0.00"},null,{"v":0,"d":"0.00"},{"v":0,"d":"0.00"},{"v":0,"d":"0.00"}]
[null,"5.11","SANS 10198 and D-ST-2328 Sheet 1 Rev 0, Sheet 6 Rev 0 and Sheet 7 Rev 0","Return (Transport), sift, backfill and compact (in maximum layers of 300mm – 90% MOD AASHTO ) original soil as backfill for HV cables.) – 1.6m (wide) x 0.75m (deep), and next to the culverts, for 100% of the route. (Original excavated soil; Second handling of soil) – Road / Railway crossing.","m³",null,{"v":0,"d":"0.00"},{"v":0,"d":"0.00"},null,{"v":0,"d":"0.00"},{"v":0,"d":"0.00"},{"v":0,"d":"0.00"}]
[null,"5.12","SANS 10198 and D-ST-2328 Sheet 1 Rev 0, Sheet 6 Rev 0 and Sheet 7 Rev 0","Offload and install Danger / Warning tape along cable route length. (The tape weights about 22kg for 330m of tape.)","m",null,{"v":0,"d":"0.00"},{"v":0,"d":"0.00"},null,{"v":0,"d":"0.00"},{"v":0,"d":"0.00"},{"v":0,"d":"0.00"}]
[null,"5.13","n/a","Chemical rock breaking. (Supply and apply safely) ","Item",null,{"v":0,"d":"0.00"},{"v":0,"d":"0.00"},null,{"v":0,"d":"0.00"},{"v":0,"d":"0.00"},{"v":0,"d":"0.00"}]
[null,"5.14","n/a","Rock blasting. (Supply and apply safely) ","Item",null,{"v":0,"d":"0.00"},{"v":0,"d":"0.00"},null,{"v":0,"d":"0.00"},{"v":0,"d":"0.00"},{"v":0,"d":"0.00"}]
[null,"5.15","n/a","Transport and dump broken rock. (Material to be dumped at suitable site in accordance with the EMP.)","m³",null,{"v":0,"d":"0.00"},{"v":0,"d":"0.00"},null,{"v":0,"d":"0.00"},{"v":0,"d":"0.00"},{"v":0,"d":"0.00"}]
[null,"5.16","D-ST-2328 Sheet 1 Rev 0, Sheet 6 Rev 0 and Sheet 7 Rev 0","Supply and install pre-cast concrete culvert (Approximately 1440mm wide, 720mm high [Outer dimensions]) and slab (Approximately 1480mm wide, 130mm thick [Outer dimensions]) as per D-ST-2328 Sheet 1 Rev 0, along HV cable route length. ","m",null,{"v":0,"d":"0.00"},{"v":0,"d":"0.00"},null,{"v":0,"d":"0.00"},{"v":0,"d":"0.00"},{"v":0,"d":"0.00"}]
[null,"5.17","D-ST-2328 Sheet 1 Rev 0, Sheet 6 Rev 0 and Sheet 7 Rev 0","Supply, deliver, install (at start of cable trenching) and decommission (after construction) 1.5m high shoring timber on both sides of the HV cable trench. (General / Under Road Surface (Parallel to kerbing)) - Shoring to be designed by ECSA registered Civil / Structural engineer.","Linear Length",null,{"v":0,"d":"0.00"},{"v":0,"d":"0.00"},null,{"v":0,"d":"0.00"},{"v":0,"d":"0.00"},{"v":0,"d":"0.00"}]
[null,"5.18","D-ST-2328 Sheet 1 Rev 0, Sheet 6 Rev 0 and Sheet 7 Rev 0","Supply, deliver, install (at start of cable trenching) and decommission (after construction) 1.8m high shoring timber on both sides of the HV cable trench. (Road and Railway crossings) - Shoring to be designed by ECSA registered Civil / Structural engineer.","Linear Length",null,{"v":0,"d":"0.00"},{"v":0,"d":"0.00"},null,{"v":0,"d":"0.00"},{"v":0,"d":"0.00"},{"v":0,"d":"0.00"}]
[null,"5.19","DMN_240-45683927","Test soil compaction along HV cable route length in intervals of 300m. A DCP (dynamic cone penetrometer) must be used and five blows on a given test with this device may not exceed 150mm in soil depth. (Equivalent to 90% Mod AASHTO.) If the depth is exceeded, then the Design engineer must be notified immediately. Results to be documented and stored on an electronic media and submitted to Eskom.","Number of tests",null,{"v":0,"d":"0.00"},{"v":0,"d":"0.00"},null,{"v":0,"d":"0.00"},{"v":0,"d":"0.00"},{"v":0,"d":"0.00"}]
[null,"5.20","SANS 10198-5","Test the thermal resistivity of the imported bedding and blanket soil, after installation, at intervals of 500m along the HV cable route length in accordance with SANS 10198-5. Results to be documented and stored on an electronic media and submitted to Eskom.","Number of tests",null,{"v":0,"d":"0.00"},{"v":0,"d":"0.00"},null,{"v":0,"d":"0.00"},{"v":0,"d":"0.00"},{"v":0,"d":"0.00"}]
[null,"5.21","n/a","Perform cross-trenches / trial holes to determine the location of services. Cross-trenches to be reinstated to their original state. (Trench sizes are: 4m wide x 1m long x 1.8m deep = 7.2m³)","m³",null,{"v":0,"d":"0.00"},{"v":0,"d":"0.00"},null,{"v":0,"d":"0.00"},{"v":0,"d":"0.00"},{"v":0,"d":"0.00"}]
[null,"5.22","D-ST-2328 Sheet 1 Rev 0, Sheet 6 Rev 0 and Sheet 7 Rev 0","Supply and cast concrete with reinforcing, on-site, to fill gaps and spaces between culverts and slabs.","m³",null,{"v":0,"d":"0.00"},{"$f":"F94*G94","v":{"v":0,"d":"0.00"}},null,{"v":0,"d":"0.00"},{"$f":"I94*J94","v":{"v":0,"d":"0.00"}},{"$f":"H94+K94","v":{"v":0,"d":"0.00"}}]
[null,"5.22","D-ST-2328 Sheet 1 Rev 0, Sheet 6 Rev 0 and Sheet 7 Rev 0","Transport (from site) and dump soil. (Backfill soil.) (Material to be dumped at suitable site in accordance with the EMP.)","m³",null,{"v":0,"d":"0.00"},{"v":0,"d":"0.00"},null,{"v":0,"d":"0.00"},{"v":0,"d":"0.00"},{"v":0,"d":"0.00"}]
[null,"Total",{"$nulls":5},{"$f":"SUM(H73:H96)","v":{"v":0,"d":"0.00"}},null,null,{"$f":"SUM(K73:K96)","v":{"v":0,"d":"0.00"}},{"$f":"SUM(L73:L96)","v":{"v":0,"d":"0.00"}}]
[null,"Civil Contractor : HV Joint bays (Normal Installation)"]
[null,"6.1","D-DT-0891 Sheet 1 and Sheet 4.","Excavate (by hand / machine) a 10m long x 2.1m wide x 1.65m deep joint bay. (80% Pickable (normal), 20% Jack Hammer (mechanical)) – 34.65m³ per joint bay.","Number of joint bays",null,{"v":0,"d":"0.00"},{"$f":"F98*G98","v":{"v":0,"d":"0.00"}},2,{"v":0,"d":"0.00"},{"$f":"I98*J98","v":{"v":0,"d":"0.00"}},{"$f":"H98+K98","v":{"v":0,"d":"0.00"}}]
[null,"6.2","D-DT-0891 Sheet 1 and Sheet 4.","Supply, deliver, install (at the start of trenching) and decommission (after construction) 1.950m high shoring timber on both sides of the HV joint bay. (HV Joint bays are 10m long) - Shoring to be designed by ECSA registered Civil / Structural engineer.","Number of joint bays",2,{"v":0,"d":"0.00"},{"$f":"F99*G99","v":{"v":0,"d":"0.00"}},2,{"v":0,"d":"0.00"},{"$f":"I99*J99","v":{"v":0,"d":"0.00"}},{"$f":"H99+K99","v":{"v":0,"d":"0.00"}}]
[null,"6.3","D-DT-2237, D-DT-0891 Sheet 1 and Sheet 4.","Cast in-situ 7m long x 2m wide x 100mm thick concrete base for each HV joint bay  (with a 1:200 slope to sump.). Concrete base to include 75mm wide x 50mm deep drainage channel. - 1.4m³ per joint bay. 10 MPa strength. (Concrete foundation to be set and marked.) Sand, Stone (13mm) and cement to be supplied by contractor. Concrete to be mixed on-site and concrete form work to be done by contractor.  Concrete base to be coated, after construction, with a bonding agent such that it would prevent Cement dust in the jointing area.","Number of joint bays",2,{"v":0,"d":"0.00"},{"v":0,"d":"0.00"},2,{"v":0,"d":"0.00"},{"v":0,"d":"0.00"},{"v":0,"d":"0.00"}]
[null,"6.4","D-DT-0891 Sheet 1 and Sheet 4.","Transport (from site) and store soil at suitable site. (First handling of soil).","m³ ",null,{"v":0,"d":"0.00"},{"v":0,"d":"0.00"},null,{"v":0,"d":"0.00"},{"v":0,"d":"0.00"},{"v":0,"d":"0.00"}]
[null,"6.5","n/a","Transport (from site) and dump soil. (Bedding and blanket soil.) (Material to be dumped at suitable site in accordance with the EMP.)","m³ ",null,{"v":0,"d":"0.00"},{"v":0,"d":"0.00"},66,{"v":0,"d":"0.00"},{"v":0,"d":"0.00"},{"v":0,"d":"0.00"}]
[null,"6.6","D-DT-0891 Sheet 1 and Sheet 4.","Sift soil with sieve having a maximum mesh size of no greater than 12mm.","m³",null,{"v":0,"d":"0.00"},{"v":0,"d":"0.00"},66,{"v":0,"d":"0.00"},{"v":0,"d":"0.00"},{"v":0,"d":"0.00"}]
[null,"6.8","D-DT-0891 Sheet 1 and Sheet 4.","Return (Transport), sift, backfill, and hand compact (90% MOD AASHTO) original excavated soil as bedding and blanket for the HV cable joint.) – 10m (long) x 2.1m (long) x 0.80m (deep) - 16.80m³ per joint bay. (Original excavated soil; Second handling of soil.) ","Number of joint bays",null,{"v":0,"d":"0.00"},{"v":0,"d":"0.00"},null,{"v":0,"d":"0.00"},{"v":0,"d":"0.00"},{"v":0,"d":"0.00"}]
[null,"6.9","D-DT-0891 Sheet 1 and Sheet 4.","Return (Transport), sift, backfill and compact (in maximum layers of 300mm – 90% MOD AASHTO) original soil as backfill for HV cable joints. - 10m (long) x 2.1m (wide) x 0.75m (deep) – 15.75m³ per joint bay. (Top layer of soil in accordance with D-DT-0891.) (Original excavated soil; Second handling of soil.) ","Number of joint bays",null,{"v":0,"d":"0.00"},{"v":0,"d":"0.00"},2,{"v":0,"d":"0.00"},{"v":0,"d":"0.00"},{"v":0,"d":"0.00"}]
[null,"6.10","D-DT-0891 Sheet 1, Sheet 4 and D-DT-8013","Off-load and install 4 x 12m of Danger/Warning tape per HV joint bay. (The tape weighs about 22kg for 330m of tape.)","Number of joint bays",null,{"v":0,"d":"0.00"},{"v":0,"d":"0.00"},2,{"v":0,"d":"0.00"},{"v":0,"d":"0.00"},{"v":0,"d":"0.00"}]
[null,"6.11","D-DT-0891 Sheet 1, Sheet 4 and D-DT-8076","Off-load and Install pre-cast concrete slabs (D-DT-8076, 760mm long, 200mm wide), in HV joint bays. (120 Slabs per joint bay.)","Number of joint bays",null,{"v":0,"d":"0.00"},{"v":0,"d":"0.00"},2,{"v":0,"d":"0.00"},{"v":0,"d":"0.00"},{"v":0,"d":"0.00"}]
[null,"Total",{"$nulls":5},{"$f":"SUM(H98:H107)","v":{"v":0,"d":"0.00"}},null,null,{"$f":"SUM(K98:K107)","v":{"v":0,"d":"0.00"}},{"$f":"SUM(L98:L107)","v":{"v":0,"d":"0.00"}}]
[null,"Civil Contractor : HV Joint bays "]
[null,"7.1","D-ST-2328 Sheet 2 Rev 0, Sheet 3 Rev 0, Sheet 4 Rev, Sheet 5 Rev 0 and Sheet 6 Rev 0","Excavate (by hand / machine) a 11m long x 2.7m wide x 1.66m deep joint bay. (80% Pickable (normal), 20% Jack Hammer (mechanical)) – 49.302m³ per joint bay.","Number of joint bays",null,{"v":0,"d":"0.00"},{"$f":"F110*G110","v":{"v":0,"d":"0.00"}},null,{"v":0,"d":"0.00"},{"$f":"I110*J110","v":{"v":0,"d":"0.00"}},{"$f":"H110+K110","v":{"v":0,"d":"0.00"}}]
[null,"7.2","D-ST-2328 Sheet 2 Rev 0, Sheet 3 Rev 0, Sheet 4 Rev, Sheet 5 Rev 0 and Sheet 6 Rev 0","Supply, deliver, install (at the start of trenching) and decommission (after construction) 1.960m high shoring timber on both sides of the HV joint bay. (HV Joint bays are 10m long) - Shoring to be designed by ECSA registered Civil / Structural engineer.","Number of joint bays",null,{"v":0,"d":"0.00"},{"$f":"F111*G111","v":{"v":0,"d":"0.00"}},null,{"v":0,"d":"0.00"},{"$f":"I111*J111","v":{"v":0,"d":"0.00"}},{"$f":"H111+K111","v":{"v":0,"d":"0.00"}}]
[null,"7.3","D-ST-2328 Sheet 2 Rev 0, Sheet 3 Rev 0, Sheet 4 Rev, Sheet 5 Rev 0 and Sheet 6 Rev 0","Supply and install pre-cast concrete culvert (Approximately 2400mm wide, 1050mm high [Outer dimensions]) and slab (Approximately 2470mm wide, 160mm thick [Outer dimensions]) as per D-ST-2328 Sheet 2 Rev 0 and D-ST-2328 Sheet 4 Rev 0, for the joint bay.","Number of joint bays",null,{"v":0,"d":"0.00"},{"v":0,"d":"0.00"},null,{"v":0,"d":"0.00"},{"v":0,"d":"0.00"},{"v":0,"d":"0.00"}]
[null,"7.4","D-ST-2328 Sheet 2 Rev 0, Sheet 3 Rev 0, Sheet 4 Rev, Sheet 5 Rev 0 and Sheet 6 Rev 0","Transport (from site) and store soil at suitable site. (First handling of soil).","m³ ",null,{"v":0,"d":"0.00"},{"v":0,"d":"0.00"},null,{"v":0,"d":"0.00"},{"v":0,"d":"0.00"},{"v":0,"d":"0.00"}]
[null,"7.5","n/a","Transport (from site) and dump soil. (Bedding and blanket soil.) (Material to be dumped at suitable site in accordance with the EMP.)","m³ ",null,{"v":0,"d":"0.00"},{"v":0,"d":"0.00"},null,{"v":0,"d":"0.00"},{"v":0,"d":"0.00"},{"v":0,"d":"0.00"}]
[null,"7.6","D-ST-2328 Sheet 2 Rev 0, Sheet 3 Rev 0, Sheet 4 Rev, Sheet 5 Rev 0 and Sheet 6 Rev 0","Sift soil with sieve having a maximum mesh size of no greater than 12mm.","m³",null,{"v":0,"d":"0.00"},{"v":0,"d":"0.00"},null,{"v":0,"d":"0.00"},{"v":0,"d":"0.00"},{"v":0,"d":"0.00"}]
[null,"7.7","D-ST-2328 Sheet 2 Rev 0, Sheet 3 Rev 0, Sheet 4 Rev, Sheet 5 Rev 0 and Sheet 6 Rev 0","Supply (Import), install and hand compact (SANS 10198) imported sifted 1.2 Km/W soil around HV cable joints, inside culvert. - 11m (long) x 2.1m (wide) x 0.90m (deep) – 20.79m³ per joint bay.","Number of joint bays",null,{"v":0,"d":"0.00"},{"v":0,"d":"0.00"},null,{"v":0,"d":"0.00"},{"v":0,"d":"0.00"},{"v":0,"d":"0.00"}]
[null,"7.8","D-ST-2328 Sheet 2 Rev 0, Sheet 3 Rev 0, Sheet 4 Rev, Sheet 5 Rev 0 and Sheet 6 Rev 0","Return (Transport), sift, backfill, and hand compact (90% MOD AASHTO) original excavated soil as bedding and blanket for the HV cable joint.) - 11m (long) x 2.1m (wide) x 0.90m (deep) – 20.79m³ per joint bay. (Original excavated soil; Second handling of soil.) ","Number of joint bays",null,{"v":0,"d":"0.00"},{"v":0,"d":"0.00"},null,{"v":0,"d":"0.00"},{"v":0,"d":"0.00"},{"v":0,"d":"0.00"}]
[null,"7.9","D-ST-2328 Sheet 2 Rev 0, Sheet 3 Rev 0, Sheet 4 Rev, Sheet 5 Rev 0 and Sheet 6 Rev 0","Return (Transport), sift, backfill and compact (in maximum layers of 300mm – 90% MOD AASHTO) original soil as backfill for HV cable joints. - 11m (long) x 2.7m (wide) x 0.45m (deep) + 11m (long) x 0.15m x 2 (wide) x 1.210m (deep) = 17.358m³ per joint bay. (Top layer of soil in accordance with D-DT-0891.) (Original excavated soil; Second handling of soil.) ","Number of joint bays",null,{"v":0,"d":"0.00"},{"v":0,"d":"0.00"},null,{"v":0,"d":"0.00"},{"v":0,"d":"0.00"},{"v":0,"d":"0.00"}]
[null,"7.10","D-ST-2328 Sheet 2 Rev 0, Sheet 3 Rev 0, Sheet 4 Rev, Sheet 5 Rev 0 and Sheet 6 Rev 0","Off-load and install 2 x 11m of Danger/Warning tape per HV joint bay. (The tape weighs about 22kg for 330m of tape.)","Number of joint bays",null,{"v":0,"d":"0.00"},{"v":0,"d":"0.00"},null,{"v":0,"d":"0.00"},{"v":0,"d":"0.00"},{"v":0,"d":"0.00"}]
[null,"7.11","D-ST-2328 Sheet 2 Rev 0, Sheet 3 Rev 0, Sheet 4 Rev, Sheet 5 Rev 0 and Sheet 6 Rev 0","Supply and cast concrete with reinforcing, on-site, to fill gaps and spaces between culverts and slabs.","m³",null,{"v":0,"d":"0.00"},{"$f":"F120*G120","v":{"v":0,"d":"0.00"}},null,{"v":0,"d":"0.00"},{"$f":"I120*J120","v":{"v":0,"d":"0.00"}},{"$f":"H120+K120","v":{"v":0,"d":"0.00"}}]
[null,"7.11","D-ST-2328 Sheet 2 Rev 0, Sheet 3 Rev 0, Sheet 4 Rev, Sheet 5 Rev 0 and Sheet 6 Rev 0","Transport (from site) and dump soil. (Backfill Soil.) (Material to be dumped at suitable site in accordance with the EMP.)","m³",null,{"v":0,"d":"0.00"},{"v":0,"d":"0.00"},null,{"v":0,"d":"0.00"},{"v":0,"d":"0.00"},{"v":0,"d":"0.00"}]
[null,"Total",{"$nulls":5},{"$f":"SUM(H110:H121)","v":{"v":0,"d":"0.00"}},null,null,{"$f":"SUM(K110:K121)","v":{"v":0,"d":"0.00"}},{"$f":"SUM(L110:L121)","v":{"v":0,"d":"0.00"}}]
[null,"Civil Contractor : Cable Route Markers"]
[null,"8.1","D-DT-8012 and 240-56030640","Install cable route markers with name plates (Descriptor) along cable route length at intervals of 150m on straight sections, at each bend, at each road crossings, railway crossing, river crossing and each HV joint bay. (Base to be 250mm below ground level. If the route marker is installed on a paved or concrete surface, the top shall be flush with this surface.) ","Each",12,{"v":0,"d":"0.00"},{"$f":"F124*G124","v":{"v":0,"d":"0.00"}},12,{"v":0,"d":"0.00"},{"$f":"I124*J124","v":{"v":0,"d":"0.00"}},{"$f":"H124+K124","v":{"v":0,"d":"0.00"}}]
[null,"8.2","D-DT-8012 and 240-56030640","Engrave route markers. The following shall be punched or scribed onto the aluminium plate of the cable route marker:\na) an arrow indicating the cable route;\nb) the cable descriptor (in accordance with 4.10.2.6 referenced to the source substation name and if applicable, “IJ” to indicate the position of a sheath interrupting joint at joint bays.)\nThe marker with aluminium plate must also be installed such that one can read the markings while standing on the pavement. i.e. the markings must face the pavement. See DHO for exact wording.","Each",12,{"v":0,"d":"0.00"},{"$f":"F125*G125","v":{"v":0,"d":"0.00"}},12,{"v":0,"d":"0.00"},{"$f":"I125*J125","v":{"v":0,"d":"0.00"}},{"$f":"H125+K125","v":{"v":0,"d":"0.00"}}]
[null,"Total",{"$nulls":5},{"$f":"SUM(H124:H125)","v":{"v":0,"d":"0.00"}},null,null,{"$f":"SUM(K124:K125)","v":{"v":0,"d":"0.00"}},{"$f":"SUM(L124:L125)","v":{"v":0,"d":"0.00"}}]
[null,"Civil Contractor : Fibre manholes"]
[null,"Civil Contractor : Reinstatement of Surfaces (For new cable and old cable to be decommissioned.)"]
[null,"9.1","D-DT-8080, D-DT-0894 Sheet 4, NRS 088-2 and SANS 10340-2","Supply and install concrete manholes for draw pits along the route length for the differential protection fibre. In high-risk areas, draw pits may be installed at least 100 mm below the normal ground level. For such a case, the ground shall be re-instated on top of the draw pit cover. ","Number of draw  pits / boxes",35,{"v":0,"d":"0.00"},{"$f":"F129*G129","v":{"v":0,"d":"0.00"}},35,{"v":0,"d":"0.00"},{"$f":"I129*J129","v":{"v":0,"d":"0.00"}},{"$f":"H129+K129","v":{"v":0,"d":"0.00"}}]
[null,"Total",{"$nulls":5},{"$f":"SUM(H124:H129)","v":{"v":0,"d":"0.00"}},null,null,{"$f":"SUM(K124:K129)","v":{"v":0,"d":"0.00"}},{"$f":"L129","v":{"v":0,"d":"0.00"}}]
[null,"Civil Contractor : Removal of existing HV cable "]
[null,"9.1","n/a","Excavate (by hand/machine) a 1m wide x 1.15m deep sloped trench for the HV cable. (80% Pickable (normal), 20% Jack Hammer (mechanical)) (Note: Excavation to be done in sections at a time, to recover an entire drum's cable, before proceeding with the next section. After this, the trench must be backfilled, compacted and surfaces reinstated, etc. before continuing with the installation of the next section. The actual labour for backfilling, compacting, reinstatement, etc. will be covered in other activities.) (The existing cable must be used as reference, as to where trenching must be done.) - General, under road surface parallel to kerb.","m",null,{"v":0,"d":"0.00"},{"$f":"F132*G132","v":{"v":0,"d":"0.00"}},null,{"v":0,"d":"0.00"},{"$f":"I132*J132","v":{"v":0,"d":"0.00"}},{"$f":"H132+K132","v":{"v":0,"d":"0.00"}}]
[null,"9.2","n/a","Excavate (by hand/machine) a 1m wide x 1.45m deep sloped trench for the HV cable. (80% Pickable (normal), 20% Jack Hammer (mechanical))(Note: Excavation to be done in sections at a time, to recover an entire drum's cable, before proceeding with the next section. After this, the trench must be backfilled, compacted and surfaces reinstated, etc. before continuing with the installation of the next section. The actual labour for backfilling, compacting, reinstatement, etc. will be covered in other activities.) (The existing cable must be used as reference, as to where trenching must be done.) - Rail or road crossings","m",null,{"v":0,"d":"0.00"},{"$f":"F133*G133","v":{"v":0,"d":"0.00"}},null,{"v":0,"d":"0.00"},{"$f":"I133*J133","v":{"v":0,"d":"0.00"}},{"$f":"H133+K133","v":{"v":0,"d":"0.00"}}]
[null,"9.3","n/a","Backfill (with normal excavated soil) and compact (in maximum layers of 300mm – 90% MOD AASHTO) all the soil previously removed to recover the HV cable.","m",null,{"v":0,"d":"0.00"},{"$f":"F134*G134","v":{"v":0,"d":"0.00"}},null,{"v":0,"d":"0.00"},{"$f":"I134*J134","v":{"v":0,"d":"0.00"}},{"$f":"H134+K134","v":{"v":0,"d":"0.00"}}]
[null,"9.4","n/a","Remove (transport – First handling of soil), store, return (Second handling of soil), backfill (with normal excavated soil) and compact (in maximum layers of 300mm – 90% MOD AASHTO) all the soil previously removed to recover the HV cable.","m",null,{"v":0,"d":"0.00"},{"v":0,"d":"0.00"},null,{"v":0,"d":"0.00"},{"v":0,"d":"0.00"},{"v":0,"d":"0.00"}]
[null,"9.5","n/a","Chemical rock breaking. (Supply and apply safely) ","Item",null,{"v":0,"d":"0.00"},{"v":0,"d":"0.00"},null,{"v":0,"d":"0.00"},{"v":0,"d":"0.00"},{"v":0,"d":"0.00"}]
[null,"9.6","n/a","Rock blasting. (Supply and apply safely) ","Item",null,{"v":0,"d":"0.00"},{"v":0,"d":"0.00"},null,{"v":0,"d":"0.00"},{"v":0,"d":"0.00"},{"v":0,"d":"0.00"}]
[null,"9.7","n/a","Transport and dump broken rock. (Material to be dumped at suitable site in accordance with the EMP.)","m³ ",null,{"v":0,"d":"0.00"},{"v":0,"d":"0.00"},null,{"v":0,"d":"0.00"},{"v":0,"d":"0.00"},{"v":0,"d":"0.00"}]
[null,"9.8","DMN_240-45683927","Test soil compaction along HV cable route length in intervals of 300m. A DCP (dynamic cone penetrometer) must be used and five blows on a given test with this device may not exceed 150mm in soil depth. (Equivalent to 90% Mod AASHTO.) If the depth is exceeded, then the Design engineer must be notified immediately. Results to be documented and stored on an electronic media and submitted to Eskom.","Number of tests",null,{"v":0,"d":"0.00"},{"v":0,"d":"0.00"},null,{"v":0,"d":"0.00"},{"v":0,"d":"0.00"},{"v":0,"d":"0.00"}]
[null,"9.9","(Specify cable and drawing)","Scrapping: Remove Link kiosk foundations. Supply soil to fill the void. Re-instate surfaces to original state.","Number of Link kiosks",null,{"v":0,"d":"0.00"},{"v":0,"d":"0.00"},null,{"v":0,"d":"0.00"},{"v":0,"d":"0.00"},{"v":0,"d":"0.00"}]
[null,"9.10","(Specify cable and drawing)","Scrapping: Remove Link manhole foundations. Supply soil to fill the void. Re-instate surfaces to original state.","Number of Link manholes",null,{"v":0,"d":"0.00"},{"v":0,"d":"0.00"},null,{"v":0,"d":"0.00"},{"v":0,"d":"0.00"},{"v":0,"d":"0.00"}]
[null,"9.11","(Specify cable and drawing)","Scrapping: Remove concrete floor underneath HV joint and dump material. (Material to be dumped at suitable site in accordance with the EMP.) Supply soil to fill the void. Re-instate surfaces to original state.","Number of joint bays",null,{"v":0,"d":"0.00"},{"v":0,"d":"0.00"},null,{"v":0,"d":"0.00"},{"v":0,"d":"0.00"},{"v":0,"d":"0.00"}]
[null,"9.12","D-DT-8012","Scrapping: Decommission and scrap route marker(s), prepare and store for scrapping by Contractor / Eskom. Re-instate surfaces to original state.","Number of Route markers",null,{"v":0,"d":"0.00"},{"v":0,"d":"0.00"},null,{"v":0,"d":"0.00"},{"v":0,"d":"0.00"},{"v":0,"d":"0.00"}]
[null,"9.13","n/a","After scrapping: Decommission oil pressure kiosk(s) and gauge(s), etc. by Electrical Contractor; Supply soil to fill the void. Re-instate surfaces to original state. ","Sets of equipment to be decommissioned",null,{"v":0,"d":"0.00"},{"$f":"F144*G144","v":{"v":0,"d":"0.00"}},null,{"v":0,"d":"0.00"},{"v":0,"d":"0.00"},{"v":0,"d":"0.00"}]
[null,"9.14","n/a","Scrap Material: Foundations, joint bay concrete floor material, etc. complete, as mentioned in activities under item 7.  (All items to be dumped at suitable site in accordance with the EMP.)","Item",null,{"v":0,"d":"0.00"},{"$f":"F145*G145","v":{"v":0,"d":"0.00"}},null,{"v":0,"d":"0.00"},{"v":0,"d":"0.00"},{"v":0,"d":"0.00"}]
[null,"Total",{"$nulls":5},{"$f":"SUM(H132:H145)","v":{"v":0,"d":"0.00"}},null,null,{"$f":"SUM(K132:K145)","v":{"v":0,"d":"0.00"}},{"$f":"SUM(L132:L145)","v":{"v":0,"d":"0.00"}}]
[null,"10.1","n/a","Trench 20m long, 1m wide and 1.3m deep to allow Electrical contractor to remove existing cable","m3",null,{"v":0,"d":"0.00"},{"$f":"F147*G147","v":{"v":0,"d":"0.00"}},26,{"v":0,"d":"0.00"},{"$f":"I147*J147","v":{"v":0,"d":"0.00"}},{"$f":"H147+K147","v":{"v":0,"d":"0.00"}}]
[null,"10.1","n/a","Backfill excavated trench","m3",null,{"v":0,"d":"0.00"},{"$f":"F148*G148","v":{"v":0,"d":"0.00"}},26,{"v":0,"d":"0.00"},{"$f":"I148*J148","v":{"v":0,"d":"0.00"}},{"$f":"H148+K148","v":{"v":0,"d":"0.00"}}]
[null,"Total",{"$nulls":5},{"$f":"SUM(H142:H147)","v":{"v":0,"d":"0.00"}},null,null,{"$f":"SUM(K142:K147)","v":{"v":0,"d":"0.00"}},{"$f":"SUM(L147:L148)","v":{"v":0,"d":"0.00"}}]
[null,"Civil Contractor : Reinstatement of Surfaces (For new cable and old cable to be decommissioned.)"]
[null,"11.1","n/a","Remove tar surfaces, and sub layers, transport and dump material before civil construction. (Material to be dumped at suitable site in accordance with the EMP.) After Civil construction, reinstate tar surface to Civil Engineer's specification.  (All material and sub layers to be supplied and installed by the contractor.)","m²",20,{"v":0,"d":"0.00"},{"$f":"F151*G151","v":{"v":0,"d":"0.00"}},20,{"v":0,"d":"0.00"},{"$f":"I151*J151","v":{"v":0,"d":"0.00"}},{"$f":"H151+K151","v":{"v":0,"d":"0.00"}}]
[null,"10.2","n/a","Remove, transport, store, transport back and reinstate kerb to its original state. (On one side of trench) ","m",null,{"v":0,"d":"0.00"},{"$f":"F152*G152","v":{"v":0,"d":"0.00"}},null,{"v":0,"d":"0.00"},{"$f":"I152*J152","v":{"v":0,"d":"0.00"}},{"$f":"H152+K152","v":{"v":0,"d":"0.00"}}]
[null,"10.3","n/a","Remove, transport, store, transport back and reinstate paved surface to its original state.","m²",null,{"v":0,"d":"0.00"},{"v":0,"d":"0.00"},null,{"v":0,"d":"0.00"},{"v":0,"d":"0.00"},{"v":0,"d":"0.00"}]
[null,"10.4","n/a","Remove, transport, store, transport back, safeguard and reinstate fences to its original state.","m²",null,{"v":0,"d":"0.00"},{"v":0,"d":"0.00"},null,{"v":0,"d":"0.00"},{"v":0,"d":"0.00"},{"v":0,"d":"0.00"}]
[null,"10.5","n/a","Reinstate gardens to its original state.","m²",null,{"v":0,"d":"0.00"},{"v":0,"d":"0.00"},null,{"v":0,"d":"0.00"},{"v":0,"d":"0.00"},{"v":0,"d":"0.00"}]
[null,"11.2","n/a","Reinstate susbstation yard (Sisimuka MTS) to its original state.","m²",null,{"v":0,"d":"0.00"},{"v":0,"d":"0.00"},1950,{"v":0,"d":"0.00"},{"v":0,"d":"0.00"},{"v":0,"d":"0.00"}]
[null,"Total",{"$nulls":5},{"$f":"SUM(H151:H156)","v":{"v":0,"d":"0.00"}},null,null,{"$f":"SUM(K151:K156)","v":{"v":0,"d":"0.00"}},{"$f":"SUM(L151:L156)","v":{"v":0,"d":"0.00"}}]

{"sheet":"Summary (Civil)","index":4,"n_rows":14,"n_cols":13,"rows_kept":14}
[]
[null,null,"Item","Total"]
[null,1,{"$f":"'HV Cable (Civil)'!$B$10","v":"Civil Contractor - Pre-work Assessment, Engineering and Construction related activities."},{"$f":"'HV Cable (Civil)'!L16","v":{"v":0,"d":"0.00"}},null,{"$f":"'HV Cable (Civil)'!$B$9","v":"*Note: For the purpose of this quote, it must not be assumed that any Eskom property may be used to establish site or store any equipment, material, backfill, etc. whatsoever."},{"$f":"'HV Cable (Civil)'!$B$9","v":"*Note: For the purpose of this quote, it must not be assumed that any Eskom property may be used to establish site or store any equipment, material, backfill, etc. whatsoever."},{"$f":"'HV Cable (Civil)'!$B$9","v":"*Note: For the purpose of this quote, it must not be assumed that any Eskom property may be used to establish site or store any equipment, material, backfill, etc. whatsoever."},{"$f":"'HV Cable (Civil)'!$B$9","v":"*Note: For the purpose of this quote, it must not be assumed that any Eskom property may be used to establish site or store any equipment, material, backfill, etc. whatsoever."},{"$f":"'HV Cable (Civil)'!$B$9","v":"*Note: For the purpose of this quote, it must not be assumed that any Eskom property may be used to establish site or store any equipment, material, backfill, etc. whatsoever."},{"$f":"'HV Cable (Civil)'!$B$9","v":"*Note: For the purpose of this quote, it must not be assumed that any Eskom property may be used to establish site or store any equipment, material, backfill, etc. whatsoever."},{"$f":"'HV Cable (Civil)'!$B$9","v":"*Note: For the purpose of this quote, it must not be assumed that any Eskom property may be used to establish site or store any equipment, material, backfill, etc. whatsoever."},{"$f":"'HV Cable (Civil)'!$B$9","v":"*Note: For the purpose of this quote, it must not be assumed that any Eskom property may be used to establish site or store any equipment, material, backfill, etc. whatsoever."}]
[null,2,{"$f":"'HV Cable (Civil)'!$B$17","v":"Civil Contractor : River crossing and embankment support"},{"$f":"'HV Cable (Civil)'!L33","v":{"v":0,"d":"0.00"}}]
[null,3,{"$f":"'HV Cable (Civil)'!$B$34","v":"Civil Contractor : Road crossing"},{"$f":"'HV Cable (Civil)'!L47","v":{"v":0,"d":"0.00"}}]
[null,4,{"$f":"'HV Cable (Civil)'!$B$48","v":"Civil Contractor : HV Cable installation (Normal Installation)"},{"$f":"'HV Cable (Civil)'!L71","v":{"v":0,"d":"0.00"}}]
[null,5,{"$f":"'HV Cable (Civil)'!$B$72","v":"Civil Contractor : HV Cable installation (Inside Culverts)"},{"$f":"'HV Cable (Civil)'!L96","v":{"v":0,"d":"0.00"}}]
[null,6,{"$f":"'HV Cable (Civil)'!$B$97","v":"Civil Contractor : HV Joint bays (Normal Installation)"},{"$f":"'HV Cable (Civil)'!L108","v":{"v":0,"d":"0.00"}}]
[null,7,{"$f":"'HV Cable (Civil)'!$B$109","v":"Civil Contractor : HV Joint bays "},{"$f":"'HV Cable (Civil)'!L122","v":{"v":0,"d":"0.00"}}]
[null,8,{"$f":"'HV Cable (Civil)'!$B$123","v":"Civil Contractor : Cable Route Markers"},{"$f":"'HV Cable (Civil)'!L126","v":{"v":0,"d":"0.00"}}]
[null,9,"Civil Contractor : Fibre manholes",{"$f":"'HV Cable (Civil)'!L130","v":{"v":0,"d":"0.00"}}]
[null,10,{"$f":"'HV Cable (Civil)'!$B$131","v":"Civil Contractor : Removal of existing HV cable "},{"$f":"'HV Cable (Civil)'!L149","v":{"v":0,"d":"0.00"}}]
[null,11,"Civil Contractor : Reinstatement of Surfaces",{"$f":"'HV Cable (Civil)'!L157","v":{"v":0,"d":"0.00"}}]
[null,null,"Total",{"$f":"SUM(D3:D13)","v":{"v":0,"d":"0.00"}}]

{"sheet":"HV Cable (Electrical)","index":5,"n_rows":166,"n_cols":12,"rows_kept":166,"merged":[[1,1,1,2],[1,3,1,11],[2,1,2,2],[2,3,2,11],[3,1,3,2],[3,3,3,11],[4,1,4,2],[4,3,4,11],[6,1,6,11],[8,1,8,11],[9,1,9,11],[13,1,13,4],[14,1,14,11],[16,1,16,4],[17,1,17,11],[21,1,21,4],[22,1,22,11],[27,1,27,4],[28,1,28,11],[33,1,33,4],[34,1,34,11],[37,1,37,4],[38,1,38,11],[41,1,41,4],[42,1,42,11],[53,1,53,4],[57,1,57,4],[58,1,58,11],[81,1,81,4],[82,1,82,11],[122,1,122,4],[123,1,123,11],[147,1,147,4],[148,1,148,11],[149,1,149,11],[154,1,154,4],[155,1,155,11],[160,1,160,4],[161,1,161,11],[165,1,165,4]]}
[]
[null,"Project Name:",null,{"$f":"'HV Cable (Civil)'!D2:L2","v":"Simmerpan Substation Upgrade"}]
[null,"Project ID:",null,{"$f":"'HV Cable (Civil)'!D3:L3","v":"NW-STM-1308-2317"}]
[null,"Job Name:",null,{"$f":"'HV Cable (Civil)'!D4:L4","v":"NW-STM-1308-2317-00002"}]
[null,"Job ID:",null,{"$f":"'HV Cable (Civil)'!D5:L5","v":"Germiston Factories- Simmerpan   88kV cables"}]
[]
[null,"Bill of Activities"]
[null,"Item","Reference: Drawing / Standard","Description","Unit","Material Quantity","Material Rate","Material Total","Labour Quantity","Labour Rate","Labour Total","Total "]
[null,"*Note: For the purpose of this quote, it must not be assumed that any Eskom property may be used to establish site or store any equipment, material, backfill, etc. whatsoever."]
[null,"Electrical Contractor - Pre-work Assessment,  Engineering and Construction related activities."]
[null,"1.1","n/a","Pump Water to ensure trenches and joint bays are free of water at all times.(Paid per hour used on the project)","Provisional Sum",null,{"v":0,"d":"0.00"},{"$f":"F11*G11","v":{"v":0,"d":"0.00"}},1,{"v":0,"d":"0.00"},{"$f":"I11*J11","v":{"v":0,"d":"0.00"}},{"$f":"H11+K11","v":{"v":0,"d":"0.00"}}]
[null,"1.2","n/a","Provide Cable flash blankets, to be used along the cable route, when in close proximity to other live cables.","Each",null,{"v":0,"d":"0.00"},{"v":0,"d":"0.00"},1,{"v":0,"d":"0.00"},{"v":0,"d":"0.00"},{"v":0,"d":"0.00"}]
[null,"1.3","DST 34-1177","Perform Engineering as per engineering report titled:General information and requirements for high voltage cable sysytems","Item",null,{"v":0,"d":"0.00"},{"v":0,"d":"0.00"},1,{"v":0,"d":"0.00"},{"v":0,"d":"0.00"},{"v":0,"d":"0.00"}]
[null,"Total",{"$nulls":5},{"$f":"SUM(H11:H13)","v":{"v":0,"d":"0.00"}},null,null,{"$f":"SUM(K11:K13)","v":{"v":0,"d":"0.00"}},{"$f":"SUM(L11:L13)","v":{"v":0,"d":"0.00"}}]
[null,"Electrical Contractor : River crossing"]
[null,"2.1","n/a","Supply, deliver and fill PVC pipes, occupied by HV cable with bentonite and water mix (10:1) that is combined with a sand and cement mix (20:8) in the ratio of 100:1. The mix shall be kept in position by sealing the end of the pipe duct with densomastic paste (Supplied and installed by contractor) where the power cable enters and exits to prevent water ingress.","m³",null,{"v":0,"d":"0.00"},{"$f":"F16*G16","v":{"v":0,"d":"0.00"}},null,{"v":0,"d":"0.00"},{"$f":"I16*J16","v":{"v":0,"d":"0.00"}},{"$f":"H16+K16","v":{"v":0,"d":"0.00"}}]
[null,"Total",{"$nulls":5},{"$f":"SUM(H16:H16)","v":{"v":0,"d":"0.00"}},null,null,{"$f":"SUM(K16:K16)","v":{"v":0,"d":"0.00"}},{"$f":"SUM(L16:L16)","v":{"v":0,"d":"0.00"}}]
[null,"Electrical Contractor : Road crossing"]
[null,"3.1","n/a","Supply, deliver and fill PVC ducts with Power cable inside (total linear length longer than 3m) with bentonite and water mix (10:1) that is combined with a sand and cement mix (20:8) in the ratio of 100:1. The mix shall be kept in position by sealing the end of the pipe duct with densomastic paste (Supplied and installed by contractor) where the power cable enters and exits to prevent water ingress.","m³",null,{"v":0,"d":"0.00"},{"$f":"F19*G19","v":{"v":0,"d":"0.00"}},null,{"v":0,"d":"0.00"},{"$f":"I19*J19","v":{"v":0,"d":"0.00"}},{"$f":"H19+K19","v":{"v":0,"d":"0.00"}}]
[null,"3.2","n/a","Supply, offload (transport) and install rot-proof bags containing a weak sand-cement mix (30:1) for a distance of approximately 0.5 m into the HV cable trench wherever cable enters or exists a pipe duct, to support the HV cable. (20 Bags to be used for each exit / entry point.)","Number of Exit and Entry points",null,{"v":0,"d":"0.00"},{"v":0,"d":"0.00"},null,{"v":0,"d":"0.00"},{"v":0,"d":"0.00"},{"v":0,"d":"0.00"}]
[null,"3.3","n/a","Supply, offload (transport) and install rot-proof bags containing a weak sand-cement mix (30:1) when constructing a road crossing. Bags to be placed such that it forms a double wall on both sides of the trench (for support). (166 Bags to be used for each crossing.) Bags to be re-used at crossings.","Number of crossings",null,{"v":0,"d":"0.00"},{"v":0,"d":"0.00"},null,{"v":0,"d":"0.00"},{"v":0,"d":"0.00"},{"v":0,"d":"0.00"}]
[null,"Total",{"$nulls":5},{"$f":"SUM(H19:H21)","v":{"v":0,"d":"0.00"}},null,null,{"$f":"SUM(K19:K21)","v":{"v":0,"d":"0.00"}},{"$f":"SUM(L19:L21)","v":{"v":0,"d":"0.00"}}]
[null,"Electrical Contractor : HV Cable installation (Normal Installation)"]
[null,"4.1","SANS 10198 and D-DT-0892 Sheet 1 and Sheet 3","Supply (Import), install and hand compact (90% MOD AASHTO) imported 1.2 Km/W sifted soil as bedding and blanket for the HV cable.) – 1m (wide) x 0.4m (deep), 100% of the route.","m³",260,{"v":0,"d":"0.00"},{"$f":"F24*G24","v":{"v":0,"d":"0.00"}},260,{"v":0,"d":"0.00"},{"$f":"I24*J24","v":{"v":0,"d":"0.00"}},{"$f":"H24+K24","v":{"v":0,"d":"0.00"}}]
[null,"4.2","SANS 10198 and D-DT-0892 Sheet 1 and Sheet 3","Return (Transport), sift, backfill, and hand compact (90% MOD AASHTO) original soil as bedding and blanket for the HV cable.) – 1m (wide) x 0.4m (deep), 100% of the route. (Original excavated soil; Second handling of soil) ","m³",null,{"v":0,"d":"0.00"},{"v":0,"d":"0.00"},null,{"v":0,"d":"0.00"},{"v":0,"d":"0.00"},{"v":0,"d":"0.00"}]
[null,"4.3","DMN_240-45683927","Test soil compaction along HV cable route length in intervals of 300m. A DCP (dynamic cone penetrometer) must be used and five blows on a given test with this device may not exceed 150mm in soil depth. (Equivalent to 90% Mod AASHTO.) If the depth is exceeded, then the Design engineer must be notified immediately. Results to be documented and stored on an electronic media and submitted to Eskom.","Number of tests",null,{"v":0,"d":"0.00"},{"v":0,"d":"0.00"},2,{"v":0,"d":"0.00"},{"v":0,"d":"0.00"},{"v":0,"d":"0.00"}]
[null,"4.4","SANS 10198-5","Test the thermal resistivity of the imported bedding and blanket soil, after installation, at intervals of 500m along the HV cable route length in accordance with SANS 10198-5. Results to be documented and stored on an electronic media and submitted to Eskom.","Number of tests",null,{"v":0,"d":"0.00"},{"v":0,"d":"0.00"},2,{"v":0,"d":"0.00"},{"v":0,"d":"0.00"},{"v":0,"d":"0.00"}]
[null,"Total",{"$nulls":5},{"$f":"SUM(H24:H27)","v":{"v":0,"d":"0.00"}},null,null,{"$f":"SUM(K24:K27)","v":{"v":0,"d":"0.00"}},{"$f":"SUM(L24:L27)","v":{"v":0,"d":"0.00"}}]
[null,"Electrical Contractor : HV Cable installation (Inside Culverts)"]
[null,"5.1","SANS 10198 and D-ST-2328 Sheet 1 Rev 0, Sheet 6 Rev 0 and Sheet 7 Rev 0","Supply (Import), install and hand compact (90% MOD AASHTO) imported 1.2 Km/W sifted soil as bedding and blanket for the HV cable.) – 1.2m (wide) x 0.6m (deep), 100% of the route.","m³",null,{"v":0,"d":"0.00"},{"$f":"F30*G30","v":{"v":0,"d":"0.00"}},null,{"v":0,"d":"0.00"},{"$f":"I30*J30","v":{"v":0,"d":"0.00"}},{"$f":"H30+K30","v":{"v":0,"d":"0.00"}}]
[null,"5.2","SANS 10198 and D-ST-2328 Sheet 1 Rev 0, Sheet 6 Rev 0 and Sheet 7 Rev 0","Return (Transport), sift, backfill, and hand compact (90% MOD AASHTO) original soil as bedding and blanket for the HV cable.) – 1.2m (wide) x 0.6m (deep), 100% of the route. (Original excavated soil; Second handling of soil) ","m³",null,{"v":0,"d":"0.00"},{"v":0,"d":"0.00"},null,{"v":0,"d":"0.00"},{"v":0,"d":"0.00"},{"v":0,"d":"0.00"}]
[null,"5.3","DMN_240-45683927","Test soil compaction along HV cable route length in intervals of 300m. A DCP (dynamic cone penetrometer) must be used and five blows on a given test with this device may not exceed 150mm in soil depth. (Equivalent to 90% Mod AASHTO.) If the depth is exceeded, then the Design engineer must be notified immediately. Results to be documented and stored on an electronic media and submitted to Eskom.","Number of tests",null,{"v":0,"d":"0.00"},{"v":0,"d":"0.00"},null,{"v":0,"d":"0.00"},{"v":0,"d":"0.00"},{"v":0,"d":"0.00"}]
[null,"5.4","SANS 10198-5","Test the thermal resistivity of the imported bedding and blanket soil, after installation, at intervals of 500m along the HV cable route length in accordance with SANS 10198-5. Results to be documented and stored on an electronic media and submitted to Eskom.","Number of tests",null,{"v":0,"d":"0.00"},{"v":0,"d":"0.00"},null,{"v":0,"d":"0.00"},{"v":0,"d":"0.00"},{"v":0,"d":"0.00"}]
[null,"Total",{"$nulls":5},{"$f":"SUM(H30:H33)","v":{"v":0,"d":"0.00"}},null,null,{"$f":"SUM(K30:K33)","v":{"v":0,"d":"0.00"}},{"$f":"SUM(L30:L33)","v":{"v":0,"d":"0.00"}}]
[null,"Electrical Contractor : HV Joint bays (Normal Installation)"]
[null,"6.1","D-DT-0891 Sheet 1, Sheet 3 and Sheet 4.","Supply (Import), install and hand compact (SANS 10198) imported sifted 1.2 Km/W soil around HV cable joints. - 10m (long) x 2.1m (wide) x 0.80m (deep) – 16.8m³ per joint bay.","Number of joint bays",2,{"v":0,"d":"0.00"},{"$f":"F36*G36","v":{"v":0,"d":"0.00"}},2,{"v":0,"d":"0.00"},{"$f":"I36*J36","v":{"v":0,"d":"0.00"}},{"$f":"H36+K36","v":{"v":0,"d":"0.00"}}]
[null,"6.2","D-DT-0891 Sheet 1, Sheet 3 and Sheet 4.","Return (Transport), sift, backfill, and hand compact (90% MOD AASHTO) original excavated soil as bedding and blanket for the HV cable joint.) – 10m (long) x 2.1m (long) x 0.80m (deep) - 16.80m³ per joint bay. (Original excavated soil; Second handling of soil.) ","Number of joint bays",null,{"v":0,"d":"0.00"},{"v":0,"d":"0.00"},2,{"v":0,"d":"0.00"},{"v":0,"d":"0.00"},{"v":0,"d":"0.00"}]
[null,"Total",{"$nulls":5},{"$f":"SUM(H36:H37)","v":{"v":0,"d":"0.00"}},null,null,{"$f":"SUM(K36:K37)","v":{"v":0,"d":"0.00"}},{"$f":"SUM(L36:L37)","v":{"v":0,"d":"0.00"}}]
[null,"Electrical Contractor : HV Joint bays (Inside Culvers)"]
[null,"7.1","D-ST-2328 Sheet 2 Rev 0, Sheet 3 Rev 0, Sheet 4 Rev, Sheet 5 Rev 0 and Sheet 6 Rev 0","Supply (Import), install and hand compact (SANS 10198) imported sifted 1.2 Km/W soil around HV cable joints, inside culvert. - 11m (long) x 2.1m (wide) x 0.90m (deep) – 20.79m³ per joint bay.","Number of joint bays",null,{"v":0,"d":"0.00"},{"$f":"F40*G40","v":{"v":0,"d":"0.00"}},null,{"v":0,"d":"0.00"},{"$f":"I40*J40","v":{"v":0,"d":"0.00"}},{"$f":"H40+K40","v":{"v":0,"d":"0.00"}}]
[null,"7.2","D-ST-2328 Sheet 2 Rev 0, Sheet 3 Rev 0, Sheet 4 Rev, Sheet 5 Rev 0 and Sheet 6 Rev 0","Return (Transport), sift, backfill, and hand compact (90% MOD AASHTO) original excavated soil as bedding and blanket for the HV cable joint.) - 11m (long) x 2.1m (wide) x 0.90m (deep) – 20.79m³ per joint bay. (Original excavated soil; Second handling of soil.) ","Number of joint bays",null,{"v":0,"d":"0.00"},{"v":0,"d":"0.00"},null,{"v":0,"d":"0.00"},{"v":0,"d":"0.00"},{"v":0,"d":"0.00"}]
[null,"Total",{"$nulls":5},{"$f":"SUM(H40:H41)","v":{"v":0,"d":"0.00"}},null,null,{"$f":"SUM(K40:K41)","v":{"v":0,"d":"0.00"}},{"$f":"SUM(L40:L41)","v":{"v":0,"d":"0.00"}}]
[null,"Electrical Contractor : Removal of existing HV cable "]
[null,"8.1","(Specify cable and drawing)","Recovery: Remove 88kV 1C 1000mm² Al XLPE / oil filled cable from open trench (site), (If oil cable, then drain partially) and drum cable. (Drum to be supplied by contractor.) Drummed cable to be Transported to Roscherville stores. (A maximum of 500m of cable to be placed on a drum). Ends of cable to be sealed off with suitable caps.","m",null,{"v":0,"d":"0.00"},{"$f":"F44*G44","v":{"v":0,"d":"0.00"}},null,{"v":0,"d":"0.00"},{"$f":"I44*J44","v":{"v":0,"d":"0.00"}},{"$f":"H44+K44","v":{"v":0,"d":"0.00"}}]
[null,"8.2","(Specify cable and drawing)","Scrapping: Remove 88kV 1C 1000mm² Al XLPE / Oil filled cable from an open trench (site), drain oil (completely), prepare and store for scrapping by Contractor / Eskom. ","m",null,{"v":0,"d":"0.00"},{"v":0,"d":"0.00"},null,{"v":0,"d":"0.00"},{"v":0,"d":"0.00"},{"v":0,"d":"0.00"}]
[null,"8.3","(Specify cable and drawing)","Scrapping: Remove 88kV HV joints from an open trench (site), prepare and store for scrapping by Contractor / Eskom. ","Number of Joints",null,{"v":0,"d":"0.00"},{"v":0,"d":"0.00"},null,{"v":0,"d":"0.00"},{"v":0,"d":"0.00"},{"v":0,"d":"0.00"}]
[null,"8.4","(Specify cable and drawing)","Scrapping: Remove 88kV HV terminations from site, prepare and store for scrapping by Contractor / Eskom. ","Number of Terminations",null,{"v":0,"d":"0.00"},{"v":0,"d":"0.00"},null,{"v":0,"d":"0.00"},{"v":0,"d":"0.00"},{"v":0,"d":"0.00"}]
[null,"8.5","(Specify cable and drawing)","Scrapping: Remove Link kiosks, connections and equipment from site, prepare and store for scrapping by Contractor / Eskom. (Includes bonding leads, Earthing, etc.; complete.) ","Number of Link kiosks",null,{"v":0,"d":"0.00"},{"v":0,"d":"0.00"},null,{"v":0,"d":"0.00"},{"v":0,"d":"0.00"},{"v":0,"d":"0.00"}]
[null,"8.6","(Specify cable and drawing)","Scrapping: Remove Link manholes, connections and equipment from site, prepare and store for scrapping by Contractor / Eskom. (Includes bonding leads, Earthing, etc.; complete.)","Number of Link manholes",null,{"v":0,"d":"0.00"},{"v":0,"d":"0.00"},null,{"v":0,"d":"0.00"},{"v":0,"d":"0.00"},{"v":0,"d":"0.00"}]
[null,"8.7","(Specify cable and drawing)","Scrapping: Remove concrete floor underneath HV joint and dump material. (Material to be dumped at suitable site in accordance with the EMP.) Supply soil to fill the void.","Number of joint bays",null,{"v":0,"d":"0.00"},{"v":0,"d":"0.00"},null,{"v":0,"d":"0.00"},{"v":0,"d":"0.00"},{"v":0,"d":"0.00"}]
[null,"8.8","D-DT-8012","Scrapping: Decommission and scrap route marker(s), prepare and store for scrapping by Contractor / Eskom. Re-instate surfaces to original state.","Number of Route markers",null,{"v":0,"d":"0.00"},{"v":0,"d":"0.00"},null,{"v":0,"d":"0.00"},{"v":0,"d":"0.00"},{"v":0,"d":"0.00"}]
[null,"8.9","n/a","Scrapping: Decommission oil pressure kiosk(s) and gauge(s), oil tank(s), piping, monitoring equipment, etc. (complete), prepare and store for scrapping by Contractor / Eskom. ","Sets of equipment to be decommissioned",null,{"v":0,"d":"0.00"},{"$f":"F52*G52","v":{"v":0,"d":"0.00"}},null,{"v":0,"d":"0.00"},{"v":0,"d":"0.00"},{"v":0,"d":"0.00"}]
[null,"8.10","n/a","Scrap Material: HV Cable, HV Joints, HV terminations, Kiosk(s) and manhole(s), oil pressure kiosk(s), oil , tank(s), piping, monitoring equipment, etc. complete, as mentioned in activities under item 7.  (All items to be dumped at suitable site in accordance with the EMP.)","Item",null,{"v":0,"d":"0.00"},{"$f":"F53*G53","v":{"v":0,"d":"0.00"}},null,{"v":0,"d":"0.00"},{"v":0,"d":"0.00"},{"v":0,"d":"0.00"}]
[null,"Total",{"$nulls":5},{"$f":"SUM(H44:H53)","v":{"v":0,"d":"0.00"}},null,null,{"$f":"SUM(K44:K53)","v":{"v":0,"d":"0.00"}},{"$f":"SUM(L44:L53)","v":{"v":0,"d":"0.00"}}]
[null,"8.1","n/a","Dismantle 88kV 1C 1000mm²  Al XLPE terminations","Each",null,{"v":0,"d":"0.00"},{"$f":"F55*G55","v":{"v":0,"d":"0.00"}},6,{"v":0,"d":"0.00"},{"$f":"I55*J55","v":{"v":0,"d":"0.00"}},{"$f":"H55+K55","v":{"v":0,"d":"0.00"}}]
[null,"8.2","n/a","Remove 88kV 1C 1000mm²  Al XLPE terminations","m",null,{"v":0,"d":"0.00"},{"v":0,"d":"0.00"},60,{"v":0,"d":"0.00"},{"v":0,"d":"0.00"},{"v":0,"d":"0.00"}]
[null,"8.3","n/a","Install End caps on cable","Each",6,{"v":0,"d":"0.00"},{"v":0,"d":"0.00"},6,{"v":0,"d":"0.00"},{"v":0,"d":"0.00"},{"v":0,"d":"0.00"}]
[null,"Total",{"$nulls":5},{"$f":"SUM(H55:H57)","v":{"v":0,"d":"0.00"}},null,null,{"$f":"SUM(K55:K57)","v":{"v":0,"d":"0.00"}},{"$f":"SUM(L55:L57)","v":{"v":0,"d":"0.00"}}]
[null,"Electrical Contractor : HV Cable"]
[null,"9.1","n/a","In unstable areas shorter than 10m along the HV cable route length, supply, offload (transport) and install rot-proof bags containing a weak sand-cement mix (30:1) such that it lines the bottom of the HV cable trench. The number of bags used will depend upon the ground softness but as a rule, sufficient bags shall be used to support a weight of 100 kg. ","m",null,{"v":0,"d":"0.00"},{"$f":"F60*G60","v":{"v":0,"d":"0.00"}},null,{"v":0,"d":"0.00"},{"$f":"I60*J60","v":{"v":0,"d":"0.00"}},{"$f":"H60+K60","v":{"v":0,"d":"0.00"}}]
[null,"9.2","D-DT-0892 Sheet 1 and Sheet 3","Lay / pull and install 132kV 1C 1000mm²  Al XLPE cable into open trench in flat formation and inside PVC pipes as designed.","m",null,{"v":0,"d":"0.00"},{"$f":"F61*G61","v":{"v":0,"d":"0.00"}},null,{"v":0,"d":"0.00"},{"$f":"I61*J61","v":{"v":0,"d":"0.00"}},{"$f":"H61+K61","v":{"v":0,"d":"0.00"}}]
[null,"9.3","D-DT-0892 Sheet 1 and Sheet 3","Lay / pull and install 132kV 1C 500mm²  Al XLPE cable into open trench in flat formation and inside PVC pipes as designed.","m",null,{"v":0,"d":"0.00"},{"$f":"F62*G62","v":{"v":0,"d":"0.00"}},null,{"v":0,"d":"0.00"},{"$f":"I62*J62","v":{"v":0,"d":"0.00"}},{"$f":"H62+K62","v":{"v":0,"d":"0.00"}}]
[null,"9.4","D-DT-0892 Sheet 1 and Sheet 3","Lay / pull and install 88kV 1C 1000mm²  Al XLPE cable into open trench in flat formation and inside PVC pipes as designed.","m",null,{"v":0,"d":"0.00"},{"v":0,"d":"0.00"},1950,{"v":0,"d":"0.00"},{"v":0,"d":"0.00"},{"v":0,"d":"0.00"}]
[null,"9.5","D-DT-0892 Sheet 1 and Sheet 3","Lay / pull and install 88kV 1C 500mm²  Al XLPE cable into open trench in flat formation and inside PVC pipes as designed.","m",null,{"v":0,"d":"0.00"},{"v":0,"d":"0.00"},null,{"v":0,"d":"0.00"},{"v":0,"d":"0.00"},{"v":0,"d":"0.00"}]
[null,"9.6","D-DT-0892 Sheet 1 and Sheet 3","Lay / pull and install 66kV 1C 1000mm²  Al XLPE cable into open trench in flat formation and inside PVC pipes as designed.","m",null,{"v":0,"d":"0.00"},{"v":0,"d":"0.00"},null,{"v":0,"d":"0.00"},{"v":0,"d":"0.00"},{"v":0,"d":"0.00"}]
[null,"9.7","D-DT-0892 Sheet 1 and Sheet 3","Lay / pull and install 66kV 1C 500mm²  Al XLPE cable into open trench in flat formation and inside PVC pipes as designed.","m",null,{"v":0,"d":"0.00"},{"v":0,"d":"0.00"},null,{"v":0,"d":"0.00"},{"v":0,"d":"0.00"},{"v":0,"d":"0.00"}]
[null,"9.8","D-DT-0892 Sheet 1 and Sheet 3","Lay / pull and install 44kV 1C 1000mm²  Al XLPE cable into open trench in flat formation and inside PVC pipes as designed.","m",null,{"v":0,"d":"0.00"},{"v":0,"d":"0.00"},null,{"v":0,"d":"0.00"},{"v":0,"d":"0.00"},{"v":0,"d":"0.00"}]
[null,"9.9","D-DT-0892 Sheet 1 and Sheet 3","Lay / pull and install 44kV 1C 500mm²  Al XLPE cable into open trench in flat formation and inside PVC pipes as designed.","m",null,{"v":0,"d":"0.00"},{"v":0,"d":"0.00"},null,{"v":0,"d":"0.00"},{"v":0,"d":"0.00"},{"v":0,"d":"0.00"}]
[null,"9.10","D-DT-0892 Sheet 1 and Sheet 3","Lay / pull and install 132kV 1C 1000mm²  Al XLPE cable into open trench in  tre-foil formation and inside PVC pipes as designed.","m",null,{"v":0,"d":"0.00"},{"v":0,"d":"0.00"},null,{"v":0,"d":"0.00"},{"v":0,"d":"0.00"},{"v":0,"d":"0.00"}]
[null,"9.11","D-DT-0892 Sheet 1 and Sheet 3","Lay / pull and install 132kV 1C 500mm²  Al XLPE cable into open trench in tre-foil formation and inside PVC pipes as designed.","m",null,{"v":0,"d":"0.00"},{"v":0,"d":"0.00"},null,{"v":0,"d":"0.00"},{"v":0,"d":"0.00"},{"v":0,"d":"0.00"}]
[null,"9.12","D-DT-0892 Sheet 1 and Sheet 3","Lay / pull and install 88kV 1C 1000mm²  Al XLPE cable into open trench in  tre-foil formation and inside PVC pipes as designed.","m",null,{"v":0,"d":"0.00"},{"v":0,"d":"0.00"},null,{"v":0,"d":"0.00"},{"v":0,"d":"0.00"},{"v":0,"d":"0.00"}]
[null,"9.13","D-DT-0892 Sheet 1 and Sheet 3","Lay / pull and install 88kV 1C 500mm²  Al XLPE cable into open trench in  tre-foil formation and inside PVC pipes as designed.","m",null,{"v":0,"d":"0.00"},{"v":0,"d":"0.00"},null,{"v":0,"d":"0.00"},{"v":0,"d":"0.00"},{"v":0,"d":"0.00"}]
[null,"9.14","D-DT-0892 Sheet 1 and Sheet 3","Lay / pull and install 66kV 1C 1000mm²  Al XLPE cable into open trench in  tre-foil formation and inside PVC pipes as designed.","m",null,{"v":0,"d":"0.00"},{"v":0,"d":"0.00"},null,{"v":0,"d":"0.00"},{"v":0,"d":"0.00"},{"v":0,"d":"0.00"}]
[null,"9.15","D-DT-0892 Sheet 1 and Sheet 3","Lay / pull and install 66kV 1C 500mm²  Al XLPE cable into open trench in  tre-foil formation and inside PVC pipes as designed.","m",null,{"v":0,"d":"0.00"},{"v":0,"d":"0.00"},null,{"v":0,"d":"0.00"},{"v":0,"d":"0.00"},{"v":0,"d":"0.00"}]
[null,"9.16","D-DT-0892 Sheet 1 and Sheet 3","Lay / pull and install 44kV 1C 1000mm²  Al XLPE cable into open trench in tre-foil formation and inside PVC pipes as designed.","m",null,{"v":0,"d":"0.00"},{"v":0,"d":"0.00"},null,{"v":0,"d":"0.00"},{"v":0,"d":"0.00"},{"v":0,"d":"0.00"}]
[null,"9.17","D-DT-0892 Sheet 1 and Sheet 3","Lay / pull and install 44kV 1C 500mm² Al XLPE cable into open trench in  tre-foil formation and inside PVC pipes as designed.","m",null,{"v":0,"d":"0.00"},{"v":0,"d":"0.00"},null,{"v":0,"d":"0.00"},{"v":0,"d":"0.00"},{"v":0,"d":"0.00"}]
[null,"9.18","D-DT-3139 & D-DT-0893 (Sheet 3) and earthing design drawing.","Lay / pull and install bare or insulated 2 x 185mm² ECC (Earth continuity conductor) along cable route length and inside PVC pipes as designed. ECCs to be transposed such that it occupies equal length between phase 1 and phase 2, and phase 2 and phase 3 along the cable route length, in accordance with the design.","m",null,{"v":0,"d":"0.00"},{"v":0,"d":"0.00"},null,{"v":0,"d":"0.00"},{"v":0,"d":"0.00"},{"v":0,"d":"0.00"}]
[null,"9.19","D-DT-3139 & D-DT-0893 (Sheet 3) and earthing design drawing.","Lay / pull and install bare or insulated 1 x 185mm² ECC (Earth continuity conductor) along cable route length and inside PVC pipes as designed. ECCs to be transposed such that it occupies equal length between phase 1 and phase 2, and phase 2 and phase 3 along the cable route length, in accordance with the design.","m",null,{"v":0,"d":"0.00"},{"v":0,"d":"0.00"},null,{"v":0,"d":"0.00"},{"v":0,"d":"0.00"},{"v":0,"d":"0.00"}]
[null,"9.20","D-DT-5240 Sheet 1 and Sheet 2 and earthing design drawing.","CAD weld / Braze bare or insulated ECC to earthmat at source and load side","Each",null,{"v":0,"d":"0.00"},{"v":0,"d":"0.00"},null,{"v":0,"d":"0.00"},{"v":0,"d":"0.00"},{"v":0,"d":"0.00"}]
[null,"9.21","D-DT-8020","Install 185mm² crimp ferrule to joint bare or insulated ECC’s together. (500m of ECC on a drum.)","Each",null,{"v":0,"d":"0.00"},{"v":0,"d":"0.00"},null,{"v":0,"d":"0.00"},{"v":0,"d":"0.00"},{"v":0,"d":"0.00"}]
[null,"9.22","D-ST-2328 Sheet 6 Rev 0 and Sheet 7 Rev 0","Supply and 'Install cable clamps on HV cables as per D-ST-2328 Sheet 6 Rev 0 and Sheet 7 Rev 0.","Number of clamps ",12,{"v":0,"d":"0.00"},{"v":0,"d":"0.00"},12,{"v":0,"d":"0.00"},{"v":0,"d":"0.00"},{"v":0,"d":"0.00"}]
[null,"Total",{"$nulls":5},{"$f":"SUM(H60:H81)","v":{"v":0,"d":"0.00"}},null,null,{"$f":"SUM(K60:K81)","v":{"v":0,"d":"0.00"}},{"$f":"SUM(L60:L81)","v":{"v":0,"d":"0.00"}}]
[null,"Electrical Contractor : HV Joints"]
[null,"10.1","D-DT-0891 Sheet 1 and Sheet 4.","Supply, offload (transport) and install rot-proof bags containing a weak sand-cement mix (30:1) such that it lines the bottom of all the HV joint bays, underneath the HV cables and HV joints. Rot-proof bags also to be used to support trench walls at the start and end of the joint bays. (108 Bags per HV joint bay [Estimated].  - Includes bags used for water diversion.)","Number of joint bays",2,{"v":0,"d":"0.00"},{"$f":"F84*G84","v":{"v":0,"d":"0.00"}},2,{"v":0,"d":"0.00"},{"$f":"I84*J84","v":{"v":0,"d":"0.00"}},{"$f":"H84+K84","v":{"v":0,"d":"0.00"}}]
[null,"10.2","D-DT-0891 Sheet 1 and Sheet 4.","Supply, offload (transport) and install rot-proof bags containing a weak sand-cement mix (30:1) for a distance of 1.5 m into the trench where HV cable enters and exits the joint bay. (20 Bags to be used for each exit / entry point.)) ","Number of joint bays",2,{"v":0,"d":"0.00"},{"v":0,"d":"0.00"},2,{"v":0,"d":"0.00"},{"v":0,"d":"0.00"},{"v":0,"d":"0.00"}]
[null,"10.3","n/a","Supply and run Generator and lights at joint bays. Fuel to be supplied by contractor. Cost breakdown will be required","Each",null,{"v":0,"d":"0.00"},{"$f":"F86*G86","v":{"v":0,"d":"0.00"}},2,{"v":0,"d":"0.00"},{"$f":"I86*J86","v":{"v":0,"d":"0.00"}},{"$f":"H86+K86","v":{"v":0,"d":"0.00"}}]
[null,"10.4","D-DT-0891 Sheet 4 or D-ST-2328 Sheet 5 Rev 0","Supply and use HV joint bay protective weather cover (waterproof tent) at joints bays.","each",null,{"v":0,"d":"0.00"},{"v":0,"d":"0.00"},2,{"v":0,"d":"0.00"},{"v":0,"d":"0.00"},{"v":0,"d":"0.00"}]
[null,"10.5","D-DT-8071","Join two 132kV 1C 1000mm² Al XLPE cables together using an sheath interrupting joint kit. ","Each",null,{"v":0,"d":"0.00"},{"$f":"F88*G88","v":{"v":0,"d":"0.00"}},null,{"v":0,"d":"0.00"},{"$f":"I88*J88","v":{"v":0,"d":"0.00"}},{"$f":"H88+K88","v":{"v":0,"d":"0.00"}}]
[null,"10.6","D-DT-8071","Join two 132kV 1C 500mm² Al XLPE cables together using an sheath interrupting joint kit. ","Each",null,{"v":0,"d":"0.00"},{"$f":"F89*G89","v":{"v":0,"d":"0.00"}},null,{"v":0,"d":"0.00"},{"$f":"I89*J89","v":{"v":0,"d":"0.00"}},{"$f":"H89+K89","v":{"v":0,"d":"0.00"}}]
[null,"10.7","D-DT-8071","Join two 88kV 1C 1000mm² Al XLPE cables together using an sheath interrupting joint kit. ","Each",null,{"v":0,"d":"0.00"},{"v":0,"d":"0.00"},null,{"v":0,"d":"0.00"},{"v":0,"d":"0.00"},{"v":0,"d":"0.00"}]
[null,"10.8","D-DT-8071","Join two 88kV 1C 500mm² Al XLPE cables together using an sheath interrupting joint kit. ","Each",null,{"v":0,"d":"0.00"},{"v":0,"d":"0.00"},null,{"v":0,"d":"0.00"},{"v":0,"d":"0.00"},{"v":0,"d":"0.00"}]
[null,"10.9","D-DT-8071","Join two 66kV 1C 1000mm² Al XLPE cables together using an sheath interrupting joint kit. ","Each",null,{"v":0,"d":"0.00"},{"v":0,"d":"0.00"},null,{"v":0,"d":"0.00"},{"v":0,"d":"0.00"},{"v":0,"d":"0.00"}]
[null,"10.10","D-DT-8071","Join two 66kV 1C 500mm² Al XLPE cables together using an sheath interrupting joint kit. ","Each",null,{"v":0,"d":"0.00"},{"v":0,"d":"0.00"},null,{"v":0,"d":"0.00"},{"v":0,"d":"0.00"},{"v":0,"d":"0.00"}]
[null,"10.11","D-DT-8071","Join two 44kV 1C 1000mm² Al XLPE cables together using an sheath interrupting joint kit. ","Each",null,{"v":0,"d":"0.00"},{"v":0,"d":"0.00"},null,{"v":0,"d":"0.00"},{"v":0,"d":"0.00"},{"v":0,"d":"0.00"}]
[null,"10.12","D-DT-8071","Join two 44kV 1C 500mm² Al XLPE cables together using an sheath interrupting joint kit. ","Each",null,{"v":0,"d":"0.00"},{"v":0,"d":"0.00"},null,{"v":0,"d":"0.00"},{"v":0,"d":"0.00"},{"v":0,"d":"0.00"}]
[null,"10.13","D-DT-8071","Join two 132kV 1C 1000mm² Al XLPE cables together using a straight joint kit.","Each",null,{"v":0,"d":"0.00"},{"v":0,"d":"0.00"},null,{"v":0,"d":"0.00"},{"v":0,"d":"0.00"},{"v":0,"d":"0.00"}]
[null,"10.14","D-DT-8071","Join two 132kV 1C 500mm² Al XLPE cables together using a straight joint kit.","Each",null,{"v":0,"d":"0.00"},{"v":0,"d":"0.00"},null,{"v":0,"d":"0.00"},{"v":0,"d":"0.00"},{"v":0,"d":"0.00"}]
[null,"10.15","D-DT-8071","Supply and 'Join two 88kV 1C 1000mm² Al XLPE cables together using a straight joint kit.","Each",6,{"v":0,"d":"0.00"},{"v":0,"d":"0.00"},6,{"v":0,"d":"0.00"},{"v":0,"d":"0.00"},{"v":0,"d":"0.00"}]
[null,"10.16","D-DT-8071","Join two 88kV 1C 500mm² Al XLPE cables together using a straight joint kit.","Each",null,{"v":0,"d":"0.00"},{"v":0,"d":"0.00"},null,{"v":0,"d":"0.00"},{"v":0,"d":"0.00"},{"v":0,"d":"0.00"}]
[null,"10.17","D-DT-8071","Join two 66kV 1C 1000mm² Al XLPE cables together using a straight joint kit.","Each",null,{"v":0,"d":"0.00"},{"v":0,"d":"0.00"},null,{"v":0,"d":"0.00"},{"v":0,"d":"0.00"},{"v":0,"d":"0.00"}]
[null,"10.18","D-DT-8071","Join two 66kV 1C 500mm² Al XLPE cables together using a straight joint kit.","Each",null,{"v":0,"d":"0.00"},{"v":0,"d":"0.00"},null,{"v":0,"d":"0.00"},{"v":0,"d":"0.00"},{"v":0,"d":"0.00"}]
[null,"10.19","D-DT-8071","Join two 44kV 1C 1000mm² Al XLPE cables together using a straight joint kit.","Each",null,{"v":0,"d":"0.00"},{"v":0,"d":"0.00"},null,{"v":0,"d":"0.00"},{"v":0,"d":"0.00"},{"v":0,"d":"0.00"}]
[null,"10.20","D-DT-8071","Join two 44kV 1C 500mm² Al XLPE cables together using a straight joint kit.","Each",null,{"v":0,"d":"0.00"},{"v":0,"d":"0.00"},null,{"v":0,"d":"0.00"},{"v":0,"d":"0.00"},{"v":0,"d":"0.00"}]
[null,"10.21","D-DT-3082, D-DT-3091, D-DT-3093, D-DT-3139, D-DT-3102, D-DT-0891 Sheet 1 & Sheet 3, and earthing design drawing.","Joint bay earthing:\n\nInstall an earth-electrode comprising of earth rods driven in at each corner of a HV joint bay, for all new HV joint bays. (Four rods per joint bay.)\n\nInstall 16mm² stranded copper conductor in the HV joint bay up to the link disconnecting kiosks / manholes.  (40m per HV joint bay.) \n\nFit clamps  to earth rods and the 16mm² stranded conductor. (Four clamps for four rods, per HV joint bay.) As an alternative, the earth rods may be CAD-welded to the 16mm² stranded copper.\n\nTerminate 16mm² copper conductor onto 2 lugs and bolt onto earth bar of kiosks / manholes or outer housing, as indicated on the earthing design. (Two lugs per HV joint bay are used.)","Number of joint bays",null,{"v":0,"d":"0.00"},{"v":0,"d":"0.00"},null,{"v":0,"d":"0.00"},{"v":0,"d":"0.00"},{"v":0,"d":"0.00"}]
[null,"10.22","D-DT-3082, D-DT-3091, D-DT-3093, D-DT-3139, D-DT-3102, D-DT-0891 Sheet 1 & Sheet 3, and earthing design drawing.","Joint bay earthing:\n\nInstall an earth-electrode comprising of earth rods driven in at each corner of a HV joint bay, for all new HV joint bays. (Four rods per joint bay.)\n\nInstall 120mm² stranded copper conductor in the HV joint bay up to the link disconnecting kiosks / manholes.  (40m per HV joint bay.) \n\nFit clamps  to earth rods and the 120mm² stranded conductor. (Four clamps for four rods, per HV joint bay.) As an alternative, the earth rods may be CAD-welded to the 120mm² stranded copper.\n\nTerminate 120mm² copper conductor onto 2 lugs and bolt onto earth bar of kiosks / manholes or outer housing, as indicated on the earthing design. (Two lugs per HV joint bay are used.)","Number of joint bays",null,{"v":0,"d":"0.00"},{"v":0,"d":"0.00"},null,{"v":0,"d":"0.00"},{"v":0,"d":"0.00"},{"v":0,"d":"0.00"}]
[null,"10.23","D-DT-8075, D-DT-2501, D-DT-3082 and earthing design drawing.","Bonding lead connections, 300mm² Cu leads:\n\nInstall and connect 6 x Single Core or 3 x Concentric bonding leads (10m), torque shear lugs (2 lugs per connection, 6 in total) and Set screws / bolts (2 set screws / bolts per connection, 6 in total) to connect the HV cable's sheaths (6 sheaths) to the SVLs and earth links, inside the kiosks / manholes, from the sheath interrupting joint, according to the earthing design. (Above to be done for each set of three HV sheath interrupting joints.) \n\nIn addition, install and connect a Single core-bonding lead (10m), such that it connects to the link disconnecting kiosk's / manhole's earth bar with a lug (1 lug), and the other end of the lead is CAD welded / brazed to a bare ECC, according to the earthing design. Alternatively, the design may also specify that the bare or insulated ECC be looped in and looped out of the link disconnecting kiosk's / manhole's earth bar with two (2) Lugs, according to the earthing design. \n\nMake all electrical connections (of the bonding leads onto the SVLs and earth links) inside the kiosks / manholes as indicated on the earthing design drawing, complete, at each HV cable sheath interrupting joint bay.","Number of joint bays",null,{"v":0,"d":"0.00"},{"v":0,"d":"0.00"},null,{"v":0,"d":"0.00"},{"v":0,"d":"0.00"},{"v":0,"d":"0.00"}]
[null,"10.24","D-DT-8075, D-DT-2501, D-DT-3082 and earthing design drawing.","Bonding lead connections, 185mm² Cu leads:\n\nInstall and connect 6 x Single Core or 3 x Concentric bonding leads (10m), torque shear lugs (2 lugs per connection, 6 in total) and Set screws / bolts (2 set screws / bolts per connection, 6 in total) to connect the HV cable's sheaths (6 sheaths) to the SVLs and earth links, inside the kiosks / manholes, from the sheath interrupting joint, according to the earthing design. (Above to be done for each set of three HV sheath interrupting joints.) \n\nIn addition, install and connect a Single core-bonding lead (10m), such that it connects to the link disconnecting kiosk's / manhole's earth bar with a lug (1 lug), and the other end of the lead is CAD welded / brazed to a bare ECC, according to the earthing design. Alternatively, the design may also specify that the bare or insulated ECC be looped in and looped out of the link disconnecting kiosk's / manhole's earth bar with two (2) Lugs, according to the earthing design. \n\nMake all electrical connections (of the bonding leads onto the SVLs and earth links) inside the kiosks / manholes as indicated on the earthing design drawing, complete, at each HV cable sheath interrupting joint bay.","Number of joint bays",null,{"v":0,"d":"0.00"},{"v":0,"d":"0.00"},null,{"v":0,"d":"0.00"},{"v":0,"d":"0.00"},{"v":0,"d":"0.00"}]
[null,"10.25","D-DT-8075, D-DT-2501, D-DT-3082 and earthing design drawing.","Bonding lead connections, 300mm² Al leads:\n\nInstall and connect 6 x Single Core or 3 x Concentric bonding leads (10m), torque shear lugs (2 lugs per connection, 6 in total) and Set screws / bolts (2 set screws / bolts per connection, 6 in total) to connect the HV cable's sheaths (6 sheaths) to the SVLs and earth links, inside the kiosks / manholes, from the sheath interrupting joint, according to the earthing design. (Above to be done for each set of three HV sheath interrupting joints.) \n\nIn addition, install and connect a Single core-bonding lead (10m), such that it connects to the link disconnecting kiosk's / manhole's earth bar with a lug (1 lug), and the other end of the lead is CAD welded / brazed to a bare ECC, according to the earthing design. Alternatively, the design may also specify that the bare or insulated ECC be looped in and looped out of the link disconnecting kiosk's / manhole's earth bar with two (2) Lugs, according to the earthing design. \n\nMake all electrical connections (of the bonding leads onto the SVLs and earth links) inside the kiosks / manholes as indicated on the earthing design drawing, complete, at each HV cable sheath interrupting joint bay.","Number of joint bays",null,{"v":0,"d":"0.00"},{"v":0,"d":"0.00"},null,{"v":0,"d":"0.00"},{"v":0,"d":"0.00"},{"v":0,"d":"0.00"}]
[null,"10.26","D-DT-8075, D-DT-2501, D-DT-3082 and earthing design drawing.","Bonding lead connections, 185mm² Al leads:\n\nInstall and connect 6 x Single Core or 3 x Concentric bonding leads (10m), torque shear lugs (2 lugs per connection, 6 in total) and Set screws / bolts (2 set screws / bolts per connection, 6 in total) to connect the HV cable's sheaths (6 sheaths) to the SVLs and earth links, inside the kiosks / manholes, from the sheath interrupting joint, according to the earthing design. (Above to be done for each set of three HV sheath interrupting joints.) \n\nIn addition, install and connect a Single core-bonding lead (10m), such that it connects to the link disconnecting kiosk's / manhole's earth bar with a lug (1 lug), and the other end of the lead is CAD welded / brazed to a bare ECC, according to the earthing design. Alternatively, the design may also specify that the bare or insulated ECC be looped in and looped out of the link disconnecting kiosk's / manhole's earth bar with two (2) Lugs, according to the earthing design. \n\nMake all electrical connections (of the bonding leads onto the SVLs and earth links) inside the kiosks / manholes as indicated on the earthing design drawing, complete, at each HV cable sheath interrupting joint bay.","Number of joint bays",null,{"v":0,"d":"0.00"},{"v":0,"d":"0.00"},null,{"v":0,"d":"0.00"},{"v":0,"d":"0.00"},{"v":0,"d":"0.00"}]
[null,"10.27","D-DT-3049, D-DT-3102, D-DT-8074, D-DT-3139 and D-DT-3102. ","Install a 6L 3E 3SVL earth kiosk at a sheath interrupting joint bay.  Steel foot to be buried. Contractor to supply and install the following as part of the installation: Portland cement, Denso tape, Concrete base, etc. Soil to be hand compacted around kiosk after installation.","Number of kiosks",null,{"v":0,"d":"0.00"},{"v":0,"d":"0.00"},null,{"v":0,"d":"0.00"},{"v":0,"d":"0.00"},{"v":0,"d":"0.00"}]
[null,"10.28","D-DT-3049, D-DT-3102, D-DT-8074, D-DT-3139 and D-DT-3102. ","Install a 6L earth kiosk at a sheath interrupting joint bay.  Steel foot to be buried. Contractor to supply and install the following as part of the installation: Portland cement, Denso tape, Concrete base, etc. Soil to be hand compacted around kiosk after installation.","Number of kiosks",null,{"v":0,"d":"0.00"},{"v":0,"d":"0.00"},null,{"v":0,"d":"0.00"},{"v":0,"d":"0.00"},{"v":0,"d":"0.00"}]
[null,"10.29","D-DT-3049, D-DT-3102, D-DT-8074, D-DT-3139 and D-DT-3102. ","Install a 6L SVL earth kiosk at a sheath interrupting joint bay.  Steel foot to be buried. Contractor to supply and install the following as part of the installation: Portland cement, Denso tape, Concrete base, etc. Soil to be hand compacted around kiosk after installation.","Number of kiosks",null,{"v":0,"d":"0.00"},{"v":0,"d":"0.00"},null,{"v":0,"d":"0.00"},{"v":0,"d":"0.00"},{"v":0,"d":"0.00"}]
[null,"10.30","D-DT-3049, D-DT-3102, D-DT-8074, D-DT-3139 and D-DT-3102. ","Install a 6L X-Bond earth kiosk at a sheath interrupting joint bay.  Steel foot to be buried. Contractor to supply and install the following as part of the installation: Portland cement, Denso tape, Concrete base, etc. Soil to be hand compacted around kiosk after installation.","Number of kiosks",null,{"v":0,"d":"0.00"},{"v":0,"d":"0.00"},null,{"v":0,"d":"0.00"},{"v":0,"d":"0.00"},{"v":0,"d":"0.00"}]
[null," '10.31","D-DT-3049, D-DT-3102, D-DT-8074, D-DT-3139 and D-DT-3102. ","Supply and 'Install a 3L earth kiosk at a substation.  Steel foot to be buried. Contractor to supply and install the following as part of the installation: Portland cement, Denso tape, Concrete base, etc. Soil to be hand compacted around kiosk after installation.","Number of kiosks",2,{"v":0,"d":"0.00"},{"v":0,"d":"0.00"},2,{"v":0,"d":"0.00"},{"v":0,"d":"0.00"},{"v":0,"d":"0.00"}]
[null,"10.32","D-DT-3049, D-DT-3102, D-DT-8074, D-DT-3139 and D-DT-3102. ","Install a 3L SVL earth kiosk at a substation.  Steel foot to be buried. Contractor to supply and install the following as part of the installation: Portland cement, Denso tape, Concrete base, etc. Soil to be hand compacted around kiosk after installation.","Number of kiosks",null,{"v":0,"d":"0.00"},{"v":0,"d":"0.00"},null,{"v":0,"d":"0.00"},{"v":0,"d":"0.00"},{"v":0,"d":"0.00"}]
[null,"10.33","D-DT-3049, D-DT-3102, D-DT-8074, D-DT-3139, D-DT-3102 and D-DT-0894 Sheet 3.","Install a 6L 3E 3SVL earth manhole at a sheath interrupting joint bay. Supply and install housing as per drawing. Soil to be hand compacted around manhole housing after installation.","Number of manholes",null,{"v":0,"d":"0.00"},{"v":0,"d":"0.00"},null,{"v":0,"d":"0.00"},{"v":0,"d":"0.00"},{"v":0,"d":"0.00"}]
[null,"10.34","D-DT-3049, D-DT-3102, D-DT-8074, D-DT-3139, D-DT-3102 and D-DT-0894 Sheet 3.","Install a 6L earth manhole at a sheath interrupting joint bay. Supply and install housing as per drawing. Soil to be hand compacted around manhole housing after installation.","Number of manholes",null,{"v":0,"d":"0.00"},{"v":0,"d":"0.00"},null,{"v":0,"d":"0.00"},{"v":0,"d":"0.00"},{"v":0,"d":"0.00"}]
[null,"10.35","D-DT-3049, D-DT-3102, D-DT-8074, D-DT-3139, D-DT-3102 and D-DT-0894 Sheet 3.","Install a 6L SVL earth manhole at a sheath interrupting joint bay. Supply and install housing as per drawing. Soil to be hand compacted around manhole housing after installation.","Number of manholes",null,{"v":0,"d":"0.00"},{"v":0,"d":"0.00"},null,{"v":0,"d":"0.00"},{"v":0,"d":"0.00"},{"v":0,"d":"0.00"}]
[null,"10.36","D-DT-3049, D-DT-3102, D-DT-8074, D-DT-3139, D-DT-3102 and D-DT-0894 Sheet 3.","Install a 6L X-Bond earth manhole at a sheath interrupting joint bay. Supply and install housing as per drawing. Soil to be hand compacted around manhole housing after installation.","Number of manholes",null,{"v":0,"d":"0.00"},{"v":0,"d":"0.00"},null,{"v":0,"d":"0.00"},{"v":0,"d":"0.00"},{"v":0,"d":"0.00"}]
[null,"10.38","D-DT-3139, D-DT-3102, D-DT-0891 Sheet 3 and earthing design drawing.","Kiosk / Manhole earthing:\n\nInstall an equipotential earth electrode around the Kiosk / manhole by laying 16mm² copper 0.5m from the kiosk at a depth of 0.5m, encircling the entire kiosk with the ends towards the kiosk. (10m of 16mm² copper used per kiosk / manhole.) \n\nCrimp 2 lugs (Cu, 16SQxM12) onto the ends of the 16mm² copper electrode and connect it to the earth bar of the kiosk / manhole or outer housing, as indicated on the earthing design. Also crimp 2 lugs (Cu, 16SQxM12) onto the ends of a 16mm² copper strand and connect it between the earth bar of the kiosk / manhole and the outer kiosk / manhole housing, as may be indicated on the earthing design.","Total number of Kiosks and manholes together",2,{"v":0,"d":"0.00"},{"v":0,"d":"0.00"},2,{"v":0,"d":"0.00"},{"v":0,"d":"0.00"},{"v":0,"d":"0.00"}]
[null,"10.39","SANS 1186, D-DT-3202 & D-DT-3049","Kiosk / Manhole labelling, Bonding lead labelling, engraving and warning signs:\n\nStencil Electrical address on kiosk / manhole. (See DHO for exact wording.)\n\nEngrave and Install blank marking plates around bonding leads inside kiosk / manhole and at the joint. (Bonding leads to be source-substation and load-substation identified. See DHO for exact wording.)\n\nSupply and mark electrical phase (red, white, blue - phase) of bonding leads with a heat-shrinkable sleeves (colour: red, white, blue), which is to be fitted over the bonding lead, both inside the kiosk / manhole and at the joint.\n\nSupply and install Danger signage on kiosk / manhole. (Label to be durable and weather resistant and comply to D-DT-3202.) i.e. All link disconnecting box kiosk doors must be externally labelled with an electrical symbolic warning sign in accordance with SANS 1186 that is permanently attached. If pop-rivets are used to attach the signs to the doors, only aircraft or blind rivets shall be used.","Total number of Kiosks and manholes together",2,{"v":0,"d":"0.00"},{"v":0,"d":"0.00"},2,{"v":0,"d":"0.00"},{"v":0,"d":"0.00"},{"v":0,"d":"0.00"}]
[null,"10.40","Show applicable kiosks / manholes on design drawing","Supply and Install Danger labels indicating that Cable sheaths still have a standing voltage, even if the HV feeder is isolated. Label to read. “Danger: Live even if HV feeder is isolated!”. Label to be fixed inside kiosk / manhole . (Label to be durable and weather resistant.)","Total number of Kiosks and manholes together",2,{"v":0,"d":"0.00"},{"v":0,"d":"0.00"},2,{"v":0,"d":"0.00"},{"v":0,"d":"0.00"},{"v":0,"d":"0.00"}]
[null,"Total",{"$nulls":5},{"$f":"SUM(H84:H122)","v":{"v":0,"d":"0.00"}},null,null,{"$f":"SUM(K84:K122)","v":{"v":0,"d":"0.00"}},{"$f":"SUM(L84:L122)","v":{"v":0,"d":"0.00"}}]
[null,"Electrical Contractor : HV Terminations"]
[null,"11.1","D-DT-8072 and earthing design drawing","Terminate a 132kV 1C 1000mm² Al XLPE cable onto gas-insulated (SF6) metal enclosed switchgear . Terminations should be in accordance with IEC 62271-209.","Number of HV terminations",null,{"v":0,"d":"0.00"},{"$f":"F125*G125","v":{"v":0,"d":"0.00"}},null,{"v":0,"d":"0.00"},{"$f":"I125*J125","v":{"v":0,"d":"0.00"}},{"$f":"H125+K125","v":{"v":0,"d":"0.00"}}]
[null,"11.2","D-DT-8072 and earthing design drawing","Terminate a 132kV 1C 500mm² Al XLPE cable onto gas-insulated (SF6) metal enclosed switchgear . Terminations should be in accordance with IEC 62271-209.","Number of HV terminations",null,{"v":0,"d":"0.00"},{"$f":"F126*G126","v":{"v":0,"d":"0.00"}},null,{"v":0,"d":"0.00"},{"$f":"I126*J126","v":{"v":0,"d":"0.00"}},{"$f":"H126+K126","v":{"v":0,"d":"0.00"}}]
[null,"11.3","D-DT-8072 and earthing design drawing","Terminate a 88kV 1C 1000mm² Al XLPE cable onto gas-insulated (SF6) metal enclosed switchgear . Terminations should be in accordance with IEC 62271-209.","Number of HV terminations",null,{"v":0,"d":"0.00"},{"v":0,"d":"0.00"},null,{"v":0,"d":"0.00"},{"v":0,"d":"0.00"},{"v":0,"d":"0.00"}]
[null,"11.4","D-DT-8072 and earthing design drawing","Terminate a 88kV 1C 500mm² Al XLPE cable onto gas-insulated (SF6) metal enclosed switchgear . Terminations should be in accordance with IEC 62271-209.","Number of HV terminations",null,{"v":0,"d":"0.00"},{"v":0,"d":"0.00"},null,{"v":0,"d":"0.00"},{"v":0,"d":"0.00"},{"v":0,"d":"0.00"}]
[null,"11.5","D-DT-8072 and earthing design drawing","Terminate a 66kV 1C 1000mm² Al XLPE cable onto gas-insulated (SF6) metal enclosed switchgear . Terminations should be in accordance with IEC 62271-209.","Number of HV terminations",null,{"v":0,"d":"0.00"},{"v":0,"d":"0.00"},null,{"v":0,"d":"0.00"},{"v":0,"d":"0.00"},{"v":0,"d":"0.00"}]
[null,"11.6","D-DT-8072 and earthing design drawing","Terminate a 66kV 1C 500mm² Al XLPE cable onto gas-insulated (SF6) metal enclosed switchgear . Terminations should be in accordance with IEC 62271-209.","Number of HV terminations",null,{"v":0,"d":"0.00"},{"v":0,"d":"0.00"},null,{"v":0,"d":"0.00"},{"v":0,"d":"0.00"},{"v":0,"d":"0.00"}]
[null,"11.7","D-DT-8072 and earthing design drawing","Terminate a 44kV 1C 1000mm² Al XLPE cable onto gas-insulated (SF6) metal enclosed switchgear . Terminations should be in accordance with IEC 62271-209.","Number of HV terminations",null,{"v":0,"d":"0.00"},{"v":0,"d":"0.00"},null,{"v":0,"d":"0.00"},{"v":0,"d":"0.00"},{"v":0,"d":"0.00"}]
[null,"11.8","D-DT-8072 and earthing design drawing","Terminate a 44kV 1C 500mm² Al XLPE cable onto gas-insulated (SF6) metal enclosed switchgear . Terminations should be in accordance with IEC 62271-209.","Number of HV terminations",null,{"v":0,"d":"0.00"},{"v":0,"d":"0.00"},null,{"v":0,"d":"0.00"},{"v":0,"d":"0.00"},{"v":0,"d":"0.00"}]
[null,"11.9","D-DT-8072, D-DT-0893 Sheet 4 and earthing design drawing","Terminate a 132kV 1C 1000mm² Al XLPE cable onto an outdoor support structure. ","Number of HV terminations",null,{"v":0,"d":"0.00"},{"v":0,"d":"0.00"},null,{"v":0,"d":"0.00"},{"v":0,"d":"0.00"},{"v":0,"d":"0.00"}]
[null,"11.10","D-DT-8072, D-DT-0893 Sheet 4 and earthing design drawing","Terminate a 132kV 1C 500mm² Al XLPE cable onto an outdoor support structure. ","Number of HV terminations",null,{"v":0,"d":"0.00"},{"v":0,"d":"0.00"},null,{"v":0,"d":"0.00"},{"v":0,"d":"0.00"},{"v":0,"d":"0.00"}]
[null,"11.11","D-DT-8072, D-DT-0893 Sheet 4 and earthing design drawing","Terminate a 88kV 1C 1000mm² Al XLPE cable onto an outdoor support structure. ","Number of HV terminations",null,{"v":0,"d":"0.00"},{"v":0,"d":"0.00"},6,{"v":0,"d":"0.00"},{"v":0,"d":"0.00"},{"v":0,"d":"0.00"}]
[null,"11.12","D-DT-8072, D-DT-0893 Sheet 4 and earthing design drawing","Terminate a 88kV 1C 500mm² Al XLPE cable onto an outdoor support structure. ","Number of HV terminations",null,{"v":0,"d":"0.00"},{"v":0,"d":"0.00"},null,{"v":0,"d":"0.00"},{"v":0,"d":"0.00"},{"v":0,"d":"0.00"}]
[null,"11.13","D-DT-8072, D-DT-0893 Sheet 4 and earthing design drawing","Terminate a 66kV 1C 1000mm² Al XLPE cable onto an outdoor support structure. ","Number of HV terminations",null,{"v":0,"d":"0.00"},{"v":0,"d":"0.00"},null,{"v":0,"d":"0.00"},{"v":0,"d":"0.00"},{"v":0,"d":"0.00"}]
[null,"11.14","D-DT-8072, D-DT-0893 Sheet 4 and earthing design drawing","Terminate a 66kV 1C 500mm² Al XLPE cable onto an outdoor support structure. ","Number of HV terminations",null,{"v":0,"d":"0.00"},{"v":0,"d":"0.00"},null,{"v":0,"d":"0.00"},{"v":0,"d":"0.00"},{"v":0,"d":"0.00"}]
[null,"11.15","D-DT-8072, D-DT-0893 Sheet 4 and earthing design drawing","Terminate a 44kV 1C 1000mm² Al XLPE cable onto an outdoor support structure. ","Number of HV terminations",null,{"v":0,"d":"0.00"},{"v":0,"d":"0.00"},null,{"v":0,"d":"0.00"},{"v":0,"d":"0.00"},{"v":0,"d":"0.00"}]
[null,"11.16","D-DT-8072, D-DT-0893 Sheet 4 and earthing design drawing","Terminate a 44kV 1C 500mm² Al XLPE cable onto an outdoor support structure. ","Number of HV terminations",null,{"v":0,"d":"0.00"},{"v":0,"d":"0.00"},null,{"v":0,"d":"0.00"},{"v":0,"d":"0.00"},{"v":0,"d":"0.00"}]
[null,"11.17","D-DT-8075 and earthing design drawing","Install 3 x 5m Single Core Bonding lead and connect it to the three terminations and to the inside of the 3L / 3 SVL kiosk / manhole (with lugs) in accordance with the earthing design. ","Number of sets of three HV terminations",null,{"v":0,"d":"0.00"},{"v":0,"d":"0.00"},2,{"v":0,"d":"0.00"},{"v":0,"d":"0.00"},{"v":0,"d":"0.00"}]
[null,"11.18","D-DT-8075, D-DT-5240 Sheet 1 and Sheet 2 and earthing design drawing. ","Install 1 x 3m Single Core Bonding lead and connect it to the earth bar inside the 3L / 3 SVL kiosk / manhole (with a lug) in accordance with the earthing design. CAD weld / Braze the other end of the bonding lead to the earthmat. In addition, make an earthing connection (with lugs) between the earth bar of the kiosk and the outer housing, if required and if indicated on the earthing design.","Number of sets of three HV terminations",null,{"v":0,"d":"0.00"},{"v":0,"d":"0.00"},2,{"v":0,"d":"0.00"},{"v":0,"d":"0.00"},{"v":0,"d":"0.00"}]
[null,"11.19","D-DT-3049, D-DT-3102, D-DT-8074, D-DT-3139, D-DT-3102 and D-DT-0894 Sheet 3.","Install a 3L earth structure mount manhole at a substation onto steel support. Contractor to supply and install the following as part of the installation: Nuts, bolts, etc. ","Number of manholes",null,{"v":0,"d":"0.00"},{"$f":"F143*G143","v":{"v":0,"d":"0.00"}},null,{"v":0,"d":"0.00"},{"$f":"I143*J143","v":{"v":0,"d":"0.00"}},{"$f":"H143+K143","v":{"v":0,"d":"0.00"}}]
[null,"11.20","D-DT-3049, D-DT-3102, D-DT-8074, D-DT-3139, D-DT-3102 and D-DT-0894 Sheet 3.","Install a 3L SVL earth structure mount manhole at a substation onto steel support. Contractor to supply and install the following as part of the installation: Nuts, bolts, etc. ","Number of manholes",null,{"v":0,"d":"0.00"},{"$f":"F144*G144","v":{"v":0,"d":"0.00"}},null,{"v":0,"d":"0.00"},{"$f":"I144*J144","v":{"v":0,"d":"0.00"}},{"$f":"H144+K144","v":{"v":0,"d":"0.00"}}]
[null,"11.22","SANS 1186, D-DT-3202 & D-DT-3049","Manhole labelling, Bonding lead labelling, engraving and warning signs:\n\nStencil Electrical address on manhole. (See DHO for exact wording.)\n\nEngrave and Install blank marking plates around bonding leads inside manhole and at the termination. (Bonding leads to be source-substation and load-substation identified. See DHO for exact wording.)\n\nSupply and mark electrical phase (red, white, blue - phase) of bonding leads with a heat-shrinkable sleeves (colour: red, white, blue), which is to be fitted over the bonding lead, both inside the manhole and at the termination.\n\nSupply and install Danger signage on manhole. (Label to be durable and weather resistant and comply to D-DT-3202.) i.e. All link disconnecting box kiosk doors must be externally labelled with an electrical symbolic warning sign in accordance with SANS 1186 that is permanently attached. If pop-rivets are used to attach the signs to the doors, only aircraft or blind rivets shall be used.","Total number of manholes together",2,{"v":0,"d":"0.00"},{"$f":"F145*G145","v":{"v":0,"d":"0.00"}},2,{"v":0,"d":"0.00"},{"$f":"I145*J145","v":{"v":0,"d":"0.00"}},{"$f":"H145+K145","v":{"v":0,"d":"0.00"}}]
[null,"11.23","Show applicable kiosks / manholes on design drawing","Supply and Install Danger labels indicating that Cable sheaths still have a standing voltage, even if the HV feeder is isolated. Label to read. “Danger: Live even if HV feeder is isolated!”. Label to be fixed inside kiosk / manhole . (Label to be durable and weather resistant.)","Total number of Kiosks and manholes together",2,{"v":0,"d":"0.00"},{"v":0,"d":"0.00"},2,{"v":0,"d":"0.00"},{"v":0,"d":"0.00"},{"v":0,"d":"0.00"}]
[null,"11.24","240-56030640","Snake HV cable in trench approaching the terminations with a wavelength not less than 30 x D where D is the overall diameter of the cable and an amplitude of approximately 5% of the wavelength.","Number of HV terminations",6,{"v":0,"d":"0.00"},{"v":0,"d":"0.00"},6,{"v":0,"d":"0.00"},{"v":0,"d":"0.00"},{"v":0,"d":"0.00"}]
[null,"Total",{"$nulls":5},{"$f":"SUM(H125:H147)","v":{"v":0,"d":"0.00"}},null,null,{"$f":"SUM(K125:K147)","v":{"v":0,"d":"0.00"}},{"$f":"SUM(L125:L147)","v":{"v":0,"d":"0.00"}}]
[null,"Electrical Contractor : Testing "]
[null,"Method statement for all testing to form part of the tender submission for Eskom acceptance, prior to contract award. \n(A report with all test results, along with all calibration certificates, to be documented and submitted to Eskom in paper format and Electronic media on completion of testing.)"]
[null,"12.2","240-56030640","Perform HV cable 10 kV d.c. sheath integrity test on all cables and sections. (Include bonding leads, kiosks and manholes, and links in test.)","Test entire circuit",null,{"v":0,"d":"0.00"},{"$f":"F151*G151","v":{"v":0,"d":"0.00"}},2,{"v":0,"d":"0.00"},{"$f":"I151*J151","v":{"v":0,"d":"0.00"}},{"$f":"H151+K151","v":{"v":0,"d":"0.00"}}]
[null,"12.4","240-56030640","Measure the circulating current on the HV cable sheath for each major section and for each cable. ","Number of Tests",null,{"v":0,"d":"0.00"},{"v":0,"d":"0.00"},2,{"v":0,"d":"0.00"},{"v":0,"d":"0.00"},{"v":0,"d":"0.00"}]
[null,"12.5","240-56030640","Perform link resistance test on all connections of the HV cable circuit.","Test entire circuit",null,{"v":0,"d":"0.00"},{"v":0,"d":"0.00"},2,{"v":0,"d":"0.00"},{"v":0,"d":"0.00"},{"v":0,"d":"0.00"}]
[null,"12.7","Reference Standard to be added.","Proving Test: Leave cable switched on, but off-load for 24 hours. \n\nPerform On-line Partial Discharge testing at all Outdoor / GIS terminations,  all joints  and all link kiosks / link manholes along the cable route length, during the proving test.  ","Test entire circuit",null,{"v":0,"d":"0.00"},{"v":0,"d":"0.00"},null,{"v":0,"d":"0.00"},{"v":0,"d":"0.00"},{"v":0,"d":"0.00"}]
[null,"Total",{"$nulls":5},{"$f":"SUM(H151:H154)","v":{"v":0,"d":"0.00"}},null,null,{"$f":"SUM(K151:K154)","v":{"v":0,"d":"0.00"}},{"$f":"SUM(L151:L154)","v":{"v":0,"d":"0.00"}}]
[null,"Electrical Contractor - Optic Fibre Work : Installation of Distributed Temperature Sensing (DTS) fibre & system and protection fibre circuit"]
[null,"13.1","D-DT-8081 & D-DT-0892 Sheet 1 and Sheet 3.","Install a fibre optic duct for distributed temperature sensing (DTS) against the centre phase of the HV cable. The fibre optic duct must be strapped to the cable using “sisal” string at 2 m intervals to prevent any movement during backfilling. (“sisal” straps to be supplied by contractor.) (No duct couplings or joints shall be used between draw pits.)","m",null,{"v":0,"d":"0.00"},{"$f":"F157*G157","v":{"v":0,"d":"0.00"}},null,{"v":0,"d":"0.00"},{"$f":"I157*J157","v":{"v":0,"d":"0.00"}},{"$f":"H157+K157","v":{"v":0,"d":"0.00"}}]
[null,"13.2","D-DT-8081 & D-DT-0892 Sheet 1 and Sheet 3.","Install a ∅32/26 mm OD/ID HDPE duct for a fibre optic cable used for differential protection. (The HDPE fibre optic cable duct must be installed on the side closest to the property boundary.)(No duct couplings or joints shall be used between draw pits.) ","m",null,{"v":0,"d":"0.00"},{"$f":"F158*G158","v":{"v":0,"d":"0.00"}},null,{"v":0,"d":"0.00"},{"$f":"I158*J158","v":{"v":0,"d":"0.00"}},{"$f":"H158+K158","v":{"v":0,"d":"0.00"}}]
[null,"13.3","D-DT-8080, D-DT-0894 Sheet 4, NRS 088-2 and SANS 10340-2","Supply and install draw pits along the route length for the DTS fibre. In high-risk areas, draw pits may be installed at least 100 mm below the normal ground level. For such a case, the ground shall be re-instated on top of the draw pit cover. ","Number of draw  pits / boxes",null,{"v":0,"d":"0.00"},{"v":0,"d":"0.00"},null,{"v":0,"d":"0.00"},{"v":0,"d":"0.00"},{"v":0,"d":"0.00"}]
[null,"13.4","D-DT-8080, D-DT-0894 Sheet 4, NRS 088-2 and SANS 10340-2","Supply and install draw pits along the route length for the differential protection fibre. In high-risk areas, draw pits may be installed at least 100 mm below the normal ground level. For such a case, the ground shall be re-instated on top of the draw pit cover. ","Number of draw  pits / boxes",null,{"v":0,"d":"0.00"},{"v":0,"d":"0.00"},null,{"v":0,"d":"0.00"},{"v":0,"d":"0.00"},{"v":0,"d":"0.00"}]
[null,"Total",{"$nulls":5},{"$f":"SUM(H157:H160)","v":{"v":0,"d":"0.00"}},null,null,{"$f":"SUM(K157:K160)","v":{"v":0,"d":"0.00"}},{"$f":"SUM(L157:L160)","v":{"v":0,"d":"0.00"}}]
[null,"Electrical Contractor - As-built drawings  (All documents and drawings to be documented and submitted to Eskom in paper format and Electronic media.)"]
[null,"14.1","240-56030640","Create an as-built cadastral drawings that show the positions of the cable, transposition positions (if applicable, cable and bare or insulated ECC), joints, terminations, link disconnecting boxes and fibre optic cable draw pits (for differential protection and DTS fibre), relative to recognized boundaries and with Global Positioning Satellite (GPS) co-ordinates. (GPS coordinates to be accurate to 0.5m)  The diagram shall also show the route of the Distributed Temperature Sensing fibre cable and the fibre cable used for differential protection, if different from the HV cable route. In addition, these drawings shall also include positions and routes of other (third party) services in close proximity to the newly installed HV power cable as they where encountered on-site, during installation. Drawing should also be stored in *.dxf / *.dgn format capable of being uploaded into Micro-station. ","Entire HV cable circuit. Number of copies: ",null,{"v":0,"d":"0.00"},{"$f":"F163*G163","v":{"v":0,"d":"0.00"}},3,{"v":0,"d":"0.00"},{"$f":"I163*J163","v":{"v":0,"d":"0.00"}},{"$f":"H163+K163","v":{"v":0,"d":"0.00"}}]
[null,"14.2","240-56030640 & Examples: D-DT-0881, D-DT-0882.","Create an as-built electrical circuit diagram that shows the following information shall be provided:\n1. HV single core cable circuit (type and size) - together with Eskom buyers guide drawing reference and SAP number;\n2. Feeder major and minor sections with route lengths;\n3. If applicable, cable transposition positions - together with GPS co-ordinates;\n4. Fibre optic cable draw pits (for differential protection and DTS fibre) – together with GPS co-ordinates;\n5. Earthing and bonding arrangement;\n6. All calculated standing voltages and circulating currents (if applicable) assuming rated current flowing in the cable feeder;\n7. Straight and sheath interrupting joints - together with Eskom buyers guide drawing references, SAP numbers and GPS co-ordinates (centre phase only);\n8. Terminations - together with Eskom buyers guide drawing references, SAP numbers and GPS co-ordinates (centre phase only);\n9. All link disconnecting kiosks / manholes - together with Eskom buyers guide drawing references, SAP numbers and GPS co-ordinates;\n10. Bonding leads - together with Eskom buyers guide drawing references and SAP numbers;\n11. If required, the bare or insulated ECC and transposition positions (if applicable) together with Eskom buyers guide drawing references, SAP numbers.\n12. If applicable, the SVL make, type and ratings (Uc, UTOV, kA);\n13. The cable installation conditions (formation, depth, spacing, soil thermal resistivity – if different to that specified in D-DT-0892);\n14. The normal and emergency feeder ratings;\n(GPS coordinates to be accurate to 0.5m)  Drawing should also be stored in *.dxf / *.dgn format capable of being uploaded into Micro-station. ","Entire HV cable circuit. Number of copies: ",null,{"v":0,"d":"0.00"},{"$f":"F164*G164","v":{"v":0,"d":"0.00"}},3,{"v":0,"d":"0.00"},{"$f":"I164*J164","v":{"v":0,"d":"0.00"}},{"$f":"H164+K164","v":{"v":0,"d":"0.00"}}]
[null,"14.3","240-56030640","Supply installation instructions for all joints and terminations. Supply drawings of all bonding lead and bare or insulated ECC (if applicable) cross-sections. Supply assembly drawings of all kiosks / manholes types. (Data to be supplied in paper and electronic format.)","Entire HV cable circuit. Number of copies: ",7,{"v":0,"d":"0.00"},{"v":0,"d":"0.00"},3,{"v":0,"d":"0.00"},{"v":0,"d":"0.00"},{"v":0,"d":"0.00"}]
[null,"Total",{"$nulls":5},{"$f":"SUM(H163:H165)","v":{"v":0,"d":"0.00"}},null,null,{"$f":"SUM(K163:K165)","v":{"v":0,"d":"0.00"}},{"$f":"SUM(L163:L165)","v":{"v":0,"d":"0.00"}}]

{"sheet":"Summary (Electrical)","index":6,"n_rows":17,"n_cols":13,"rows_kept":17}
[]
[null,null,"Item","Total"]
[null,1,{"$f":"'HV Cable (Electrical)'!$B$10","v":"Electrical Contractor - Pre-work Assessment,  Engineering and Construction related activities."},{"$f":"'HV Cable (Electrical)'!L14","v":{"v":0,"d":"0.00"}}]
[null,2,{"$f":"'HV Cable (Electrical)'!$B$15","v":"Electrical Contractor : River crossing"},{"$f":"'HV Cable (Electrical)'!L17","v":{"v":0,"d":"0.00"}},null,{"$f":"'HV Cable (Electrical)'!$B$15","v":"Electrical Contractor : River crossing"},{"$f":"'HV Cable (Electrical)'!$B$15","v":"Electrical Contractor : River crossing"},{"$f":"'HV Cable (Electrical)'!$B$15","v":"Electrical Contractor : River crossing"},{"$f":"'HV Cable (Electrical)'!$B$15","v":"Electrical Contractor : River crossing"},{"$f":"'HV Cable (Electrical)'!$B$15","v":"Electrical Contractor : River crossing"},{"$f":"'HV Cable (Electrical)'!$B$15","v":"Electrical Contractor : River crossing"},{"$f":"'HV Cable (Electrical)'!$B$15","v":"Electrical Contractor : River crossing"},{"$f":"'HV Cable (Electrical)'!$B$15","v":"Electrical Contractor : River crossing"}]
[null,3,{"$f":"'HV Cable (Electrical)'!$B$18","v":"Electrical Contractor : Road crossing"},{"$f":"'HV Cable (Electrical)'!L22","v":{"v":0,"d":"0.00"}}]
[null,4,{"$f":"'HV Cable (Electrical)'!$B$23","v":"Electrical Contractor : HV Cable installation (Normal Installation)"},{"$f":"'HV Cable (Electrical)'!L28","v":{"v":0,"d":"0.00"}}]
[null,5,{"$f":"'HV Cable (Electrical)'!$B$29","v":"Electrical Contractor : HV Cable installation (Inside Culverts)"},{"$f":"'HV Cable (Electrical)'!L34","v":{"v":0,"d":"0.00"}}]
[null,6,{"$f":"'HV Cable (Electrical)'!$B$35","v":"Electrical Contractor : HV Joint bays (Normal Installation)"},{"$f":"'HV Cable (Electrical)'!L38","v":{"v":0,"d":"0.00"}}]
[null,7,{"$f":"'HV Cable (Electrical)'!$B$39","v":"Electrical Contractor : HV Joint bays (Inside Culvers)"},{"$f":"'HV Cable (Electrical)'!L42","v":{"v":0,"d":"0.00"}}]
[null,8,{"$f":"'HV Cable (Electrical)'!$B$43","v":"Electrical Contractor : Removal of existing HV cable "},{"$f":"'HV Cable (Electrical)'!L58","v":{"v":0,"d":"0.00"}}]
[null,9,{"$f":"'HV Cable (Electrical)'!$B$59","v":"Electrical Contractor : HV Cable"},{"$f":"'HV Cable (Electrical)'!L82","v":{"v":0,"d":"0.00"}}]
[null,10,{"$f":"'HV Cable (Electrical)'!$B$83","v":"Electrical Contractor : HV Joints"},{"$f":"'HV Cable (Electrical)'!L123","v":{"v":0,"d":"0.00"}}]
[null,11,{"$f":"'HV Cable (Electrical)'!$B$124","v":"Electrical Contractor : HV Terminations"},{"$f":"'HV Cable (Electrical)'!L148","v":{"v":0,"d":"0.00"}}]
[null,12,{"$f":"'HV Cable (Electrical)'!$B$149","v":"Electrical Contractor : Testing "},{"$f":"'HV Cable (Electrical)'!L155","v":{"v":0,"d":"0.00"}}]
[null,13,{"$f":"'HV Cable (Electrical)'!$B$156","v":"Electrical Contractor - Optic Fibre Work : Installation of Distributed Temperature Sensing (DTS) fibre & system and protection fibre circuit"},{"$f":"'HV Cable (Electrical)'!L161","v":{"v":0,"d":"0.00"}}]
[null,14,{"$f":"'HV Cable (Electrical)'!$B$162","v":"Electrical Contractor - As-built drawings  (All documents and drawings to be documented and submitted to Eskom in paper format and Electronic media.)"},{"$f":"'HV Cable (Electrical)'!L166","v":{"v":0,"d":"0.00"}}]
[null,null,"Total",{"$f":"SUM(D3:D16)","v":{"v":0,"d":"0.00"}}]